Workbook

Sheet Schedules
A1: Operating Schedules
C3: Annual | E3: Weekday Hours Per day (up to 24) | J3: Weekend Hours Per Day (up to 24)
A4: Schedule | B4: Annual Hours | C4: Weeks | D4: Weekends | E4: Monday | F4: Tuesday | G4: Wednesday | H4: Thursday | I4: Friday | J4: Saturday | K4: Sunday
A5: ="Sched_1" -> Sched_1 | B5: =(SUM(E5:I5)*C5)+(SUM(J5:K5)*D5) -> 0 | C5: 52 | D5: 52
A6: ="Sched_2" -> Sched_2 | B6: =(SUM(E6:I6)*C6)+(SUM(J6:K6)*D6) -> 0 | C6: 52 | D6: 52
A7: ="Sched_3" -> Sched_3 | B7: =(SUM(E7:I7)*C7)+(SUM(J7:K7)*D7) -> 0 | C7: 52 | D7: 52
A8: ="Sched_4" -> Sched_4 | B8: =(SUM(E8:I8)*C8)+(SUM(J8:K8)*D8) -> 0 | C8: 52 | D8: 52
A9: Sched_5 | B9: 0 | C9: 52 | D9: 52
A10: Sched_6 | B10: 0 | C10: 52 | D10: 52
A11: Sched_7 | B11: 0 | C11: 52 | D11: 52
A12: ="Sched_8" -> Sched_8 | B12: 0 | C12: 52 | D12: 52
A13: ="Sched_9" -> Sched_9 | B13: 0 | C13: 52 | D13: 52
A14: Sched_10 | B14: 0 | C14: 52 | D14: 52
A16: New Control Schedule
A17: Occupancy Sensor | B17: Deemed savings % | C17: Source of Savings Factor
A18: Approved NLC | B18: 0.35
A19: Control Type 2 | B19: 0.25
A20: Control Type 3 | B20: 0.15
A21: Control Type 4 | B21: 0.1
A22: Control Type 5 | B22: 0.5
A23: None | B23: 0
A25: User-Defined Fixtures (Existing LED or Other)
A26: Fixture Description | B26: Early Repl. Wattage

Sheet Project Details
M5: Date:
O7: Select 100% for the rebate cap if the project is for a multi-family, school, non-profit, or governmental agency facility.
M8: Cap: | N8: 0.5
M10: Cost Per kWh: | N10: =AVERAGE(0.1718,0.2181) -> 0.19495
C12: Business Name: | H12: Site Address: | L12: City: | M12: Healdsburg | N12: State: | O12: CA | P12: Zip: | Q12: 95448
C13: Contact Name: | H13: Phone: | K13: Business Type: | N13: Describe (if Other):
E15: Pre-Existing Condition | L15: Post-Condition (New Equipment)
C16: Fixture Location | D16: Space Type | E16: Fixture Type Before Retrofit | F16: Baseline | G16: Fixture Before Retrofit | H16: Baseline Wattage Per Fixture Before Retrofit | I16: # Fixtures Before Retrofit | J16: Lighting Operation Schedule | K16: Annual Hours of Operation Before Retrofit | L16: Fixture Type After Retrofit | M16: Fixture After Retrofit | N16: De-lamp | O16: Watts Per Fixture After Retrofit | P16: # Fixtures After Retrofit | Q16: Controls | R16: Annual Hours of Operation After Retrofit | S16: Estimated Annual kWh Savings | T16: Estimated kW Demand Reduction | U16: Calculated Rebate
H17: =IF(F17="Early Replacement", IFERROR(VLOOKUP(G17, Lookups!B40:D222, 2, FALSE), 0), IF(F17="Replace on Burnout", IFERROR(VLOOKUP(G17, Lookups!B40:D222, 3, FALSE), 0), IF(E17="User Defined", IFERROR(VLOOKUP(G17, Lookups!B213:C246, 2, FALSE), 0), 0))) -> 0 | K17: =IF(J17="","",INDEX(Schedules!$B$5:$B$14,MATCH(J17,Schedules!$A$5:$A$14,0),)) ->  | R17: =IF(COUNTA(P17)=0,"", _xlfn.IFNA(K17 * (1 - VLOOKUP(TRIM(Q17), Schedules!$A$18:$B$23, 2, FALSE)), K17)) ->  | S17: =IF(COUNTA(P17)=0,"",IFERROR(IF(F17="Replace on Burnout", Calculations!Z4 * (1 - _xlfn.IFNA(VLOOKUP(TRIM(Q17), Schedules!$A$18:$B$23, 2, FALSE), 0)), IF(F17="Early Replacement", Calculations!Y4 * (1 - _xlfn.IFNA(VLOOKUP(TRIM(Q17), Schedules!$A$18:$B$23, 2, FALSE), 0)),0)),0)) ->  | T17: =IF(COUNTA(P17)=0,"",IF(D17="Exterior", 0,IF(F17="Early Replacement",Calculations!AC4 * (1 - _xlfn.IFNA(VLOOKUP(TRIM(Q17), Schedules!$A$18:$B$23, 2, FALSE), 0)),IF(F17="Replace on Burnout",Calculations!AD4 * (1 - _xlfn.IFNA(VLOOKUP(TRIM(Q17), Schedules!A18:B23, 2, FALSE), 0)),0)))) ->  | U17: =IF(COUNTA(P17)=0,"", IF(F17="Early Replacement",(Calculations!Y4*0.15),IF(F17="Replace on Burnout",(Calculations!Z4*0.15)))) -> 
H18: =IF(F18="Early Replacement", IFERROR(VLOOKUP(G18, Lookups!B41:D223, 2, FALSE), 0), IF(F18="Replace on Burnout", IFERROR(VLOOKUP(G18, Lookups!B41:D223, 3, FALSE), 0), IF(E18="User Defined", IFERROR(VLOOKUP(G18, Lookups!B214:C247, 2, FALSE), 0), 0))) -> 0 | K18: =IF(J18="","",INDEX(Schedules!$B$5:$B$14,MATCH(J18,Schedules!$A$5:$A$14,0),)) ->  | R18: =IF(COUNTA(P18)=0,"", _xlfn.IFNA(K18 * (1 - VLOOKUP(TRIM(Q18), Schedules!$A$18:$B$23, 2, FALSE)), K18)) ->  | S18: =IF(COUNTA(P18)=0,"",IFERROR(IF(F18="Replace on Burnout", Calculations!Z5 * (1 - _xlfn.IFNA(VLOOKUP(TRIM(Q18), Schedules!$A$18:$B$23, 2, FALSE), 0)), IF(F18="Early Replacement", Calculations!Y5 * (1 - _xlfn.IFNA(VLOOKUP(TRIM(Q18), Schedules!$A$18:$B$23, 2, FALSE), 0)),0)),0)) ->  | T18: =IF(COUNTA(P18)=0,"",IF(D18="Exterior", 0,IF(F18="Early Replacement",Calculations!AC5 * (1 - _xlfn.IFNA(VLOOKUP(TRIM(Q18), Schedules!$A$18:$B$23, 2, FALSE), 0)),IF(F18="Replace on Burnout",Calculations!AD5 * (1 - _xlfn.IFNA(VLOOKUP(TRIM(Q18), Schedules!A19:B24, 2, FALSE), 0)),0)))) ->  | U18: =IF(COUNTA(P18)=0,"", IF(F18="Early Replacement",(Calculations!Y5*0.15),IF(F18="Replace on Burnout",(Calculations!Z5*0.15)))) -> 
H19: =IF(F19="Early Replacement", IFERROR(VLOOKUP(G19, Lookups!B42:D224, 2, FALSE), 0), IF(F19="Replace on Burnout", IFERROR(VLOOKUP(G19, Lookups!B42:D224, 3, FALSE), 0), IF(E19="User Defined", IFERROR(VLOOKUP(G19, Lookups!B215:C248, 2, FALSE), 0), 0))) -> 0 | K19: =IF(J19="","",INDEX(Schedules!$B$5:$B$14,MATCH(J19,Schedules!$A$5:$A$14,0),)) ->  | R19: =IF(COUNTA(P19)=0,"", _xlfn.IFNA(K19 * (1 - VLOOKUP(TRIM(Q19), Schedules!$A$18:$B$23, 2, FALSE)), K19)) ->  | S19: =IF(COUNTA(P19)=0,"",IFERROR(IF(F19="Replace on Burnout", Calculations!Z6 * (1 - _xlfn.IFNA(VLOOKUP(TRIM(Q19), Schedules!$A$18:$B$23, 2, FALSE), 0)), IF(F19="Early Replacement", Calculations!Y6 * (1 - _xlfn.IFNA(VLOOKUP(TRIM(Q19), Schedules!$A$18:$B$23, 2, FALSE), 0)),0)),0)) ->  | T19: =IF(COUNTA(P19)=0,"",IF(D19="Exterior", 0,IF(F19="Early Replacement",Calculations!AC6 * (1 - _xlfn.IFNA(VLOOKUP(TRIM(Q19), Schedules!$A$18:$B$23, 2, FALSE), 0)),IF(F19="Replace on Burnout",Calculations!AD6 * (1 - _xlfn.IFNA(VLOOKUP(TRIM(Q19), Schedules!A20:B25, 2, FALSE), 0)),0)))) ->  | U19: =IF(COUNTA(P19)=0,"", IF(F19="Early Replacement",(Calculations!Y6*0.15),IF(F19="Replace on Burnout",(Calculations!Z6*0.15)))) -> 
H20: =IF(F20="Early Replacement", IFERROR(VLOOKUP(G20, Lookups!B43:D225, 2, FALSE), 0), IF(F20="Replace on Burnout", IFERROR(VLOOKUP(G20, Lookups!B43:D225, 3, FALSE), 0), IF(E20="User Defined", IFERROR(VLOOKUP(G20, Lookups!B216:C249, 2, FALSE), 0), 0))) -> 0 | K20: =IF(J20="","",INDEX(Schedules!$B$5:$B$14,MATCH(J20,Schedules!$A$5:$A$14,0),)) ->  | R20: =IF(COUNTA(P20)=0,"", _xlfn.IFNA(K20 * (1 - VLOOKUP(TRIM(Q20), Schedules!$A$18:$B$23, 2, FALSE)), K20)) ->  | S20: =IF(COUNTA(P20)=0,"",IFERROR(IF(F20="Replace on Burnout", Calculations!Z7 * (1 - _xlfn.IFNA(VLOOKUP(TRIM(Q20), Schedules!$A$18:$B$23, 2, FALSE), 0)), IF(F20="Early Replacement", Calculations!Y7 * (1 - _xlfn.IFNA(VLOOKUP(TRIM(Q20), Schedules!$A$18:$B$23, 2, FALSE), 0)),0)),0)) ->  | T20: =IF(COUNTA(P20)=0,"",IF(D20="Exterior", 0,IF(F20="Early Replacement",Calculations!AC7 * (1 - _xlfn.IFNA(VLOOKUP(TRIM(Q20), Schedules!$A$18:$B$23, 2, FALSE), 0)),IF(F20="Replace on Burnout",Calculations!AD7 * (1 - _xlfn.IFNA(VLOOKUP(TRIM(Q20), Schedules!A21:B26, 2, FALSE), 0)),0)))) ->  | U20: =IF(COUNTA(P20)=0,"", IF(F20="Early Replacement",(Calculations!Y7*0.15),IF(F20="Replace on Burnout",(Calculations!Z7*0.15)))) -> 
H21: =IF(F21="Early Replacement", IFERROR(VLOOKUP(G21, Lookups!B44:D226, 2, FALSE), 0), IF(F21="Replace on Burnout", IFERROR(VLOOKUP(G21, Lookups!B44:D226, 3, FALSE), 0), IF(E21="User Defined", IFERROR(VLOOKUP(G21, Lookups!B217:C250, 2, FALSE), 0), 0))) -> 0 | K21: =IF(J21="","",INDEX(Schedules!$B$5:$B$14,MATCH(J21,Schedules!$A$5:$A$14,0),)) ->  | R21: =IF(COUNTA(P21)=0,"", _xlfn.IFNA(K21 * (1 - VLOOKUP(TRIM(Q21), Schedules!$A$18:$B$23, 2, FALSE)), K21)) ->  | S21: =IF(COUNTA(P21)=0,"",IFERROR(IF(F21="Replace on Burnout", Calculations!Z8 * (1 - _xlfn.IFNA(VLOOKUP(TRIM(Q21), Schedules!$A$18:$B$23, 2, FALSE), 0)), IF(F21="Early Replacement", Calculations!Y8 * (1 - _xlfn.IFNA(VLOOKUP(TRIM(Q21), Schedules!$A$18:$B$23, 2, FALSE), 0)),0)),0)) ->  | T21: =IF(COUNTA(P21)=0,"",IF(D21="Exterior", 0,IF(F21="Early Replacement",Calculations!AC8 * (1 - _xlfn.IFNA(VLOOKUP(TRIM(Q21), Schedules!$A$18:$B$23, 2, FALSE), 0)),IF(F21="Replace on Burnout",Calculations!AD8 * (1 - _xlfn.IFNA(VLOOKUP(TRIM(Q21), Schedules!A22:B27, 2, FALSE), 0)),0)))) ->  | U21: =IF(COUNTA(P21)=0,"", IF(F21="Early Replacement",(Calculations!Y8*0.15),IF(F21="Replace on Burnout",(Calculations!Z8*0.15)))) -> 
H22: =IF(F22="Early Replacement", IFERROR(VLOOKUP(G22, Lookups!B45:D227, 2, FALSE), 0), IF(F22="Replace on Burnout", IFERROR(VLOOKUP(G22, Lookups!B45:D227, 3, FALSE), 0), IF(E22="User Defined", IFERROR(VLOOKUP(G22, Lookups!B218:C251, 2, FALSE), 0), 0))) -> 0 | K22: =IF(J22="","",INDEX(Schedules!$B$5:$B$14,MATCH(J22,Schedules!$A$5:$A$14,0),)) ->  | R22: =IF(COUNTA(P22)=0,"", _xlfn.IFNA(K22 * (1 - VLOOKUP(TRIM(Q22), Schedules!$A$18:$B$23, 2, FALSE)), K22)) ->  | S22: =IF(COUNTA(P22)=0,"",IFERROR(IF(F22="Replace on Burnout", Calculations!Z9 * (1 - _xlfn.IFNA(VLOOKUP(TRIM(Q22), Schedules!$A$18:$B$23, 2, FALSE), 0)), IF(F22="Early Replacement", Calculations!Y9 * (1 - _xlfn.IFNA(VLOOKUP(TRIM(Q22), Schedules!$A$18:$B$23, 2, FALSE), 0)),0)),0)) ->  | T22: =IF(COUNTA(P22)=0,"",IF(D22="Exterior", 0,IF(F22="Early Replacement",Calculations!AC9 * (1 - _xlfn.IFNA(VLOOKUP(TRIM(Q22), Schedules!$A$18:$B$23, 2, FALSE), 0)),IF(F22="Replace on Burnout",Calculations!AD9 * (1 - _xlfn.IFNA(VLOOKUP(TRIM(Q22), Schedules!A23:B28, 2, FALSE), 0)),0)))) ->  | U22: =IF(COUNTA(P22)=0,"", IF(F22="Early Replacement",(Calculations!Y9*0.15),IF(F22="Replace on Burnout",(Calculations!Z9*0.15)))) -> 
H23: =IF(F23="Early Replacement", IFERROR(VLOOKUP(G23, Lookups!B46:D228, 2, FALSE), 0), IF(F23="Replace on Burnout", IFERROR(VLOOKUP(G23, Lookups!B46:D228, 3, FALSE), 0), IF(E23="User Defined", IFERROR(VLOOKUP(G23, Lookups!B219:C252, 2, FALSE), 0), 0))) -> 0 | K23: =IF(J23="","",INDEX(Schedules!$B$5:$B$14,MATCH(J23,Schedules!$A$5:$A$14,0),)) ->  | R23: =IF(COUNTA(P23)=0,"", _xlfn.IFNA(K23 * (1 - VLOOKUP(TRIM(Q23), Schedules!$A$18:$B$23, 2, FALSE)), K23)) ->  | S23: =IF(COUNTA(P23)=0,"",IFERROR(IF(F23="Replace on Burnout", Calculations!Z10 * (1 - _xlfn.IFNA(VLOOKUP(TRIM(Q23), Schedules!$A$18:$B$23, 2, FALSE), 0)), IF(F23="Early Replacement", Calculations!Y10 * (1 - _xlfn.IFNA(VLOOKUP(TRIM(Q23), Schedules!$A$18:$B$23, 2, FALSE), 0)),0)),0)) ->  | T23: =IF(COUNTA(P23)=0,"",IF(D23="Exterior", 0,IF(F23="Early Replacement",Calculations!AC10 * (1 - _xlfn.IFNA(VLOOKUP(TRIM(Q23), Schedules!$A$18:$B$23, 2, FALSE), 0)),IF(F23="Replace on Burnout",Calculations!AD10 * (1 - _xlfn.IFNA(VLOOKUP(TRIM(Q23), Schedules!A24:B29, 2, FALSE), 0)),0)))) ->  | U23: =IF(COUNTA(P23)=0,"", IF(F23="Early Replacement",(Calculations!Y10*0.15),IF(F23="Replace on Burnout",(Calculations!Z10*0.15)))) -> 
H24: =IF(F24="Early Replacement", IFERROR(VLOOKUP(G24, Lookups!B47:D229, 2, FALSE), 0), IF(F24="Replace on Burnout", IFERROR(VLOOKUP(G24, Lookups!B47:D229, 3, FALSE), 0), IF(E24="User Defined", IFERROR(VLOOKUP(G24, Lookups!B220:C253, 2, FALSE), 0), 0))) -> 0 | K24: =IF(J24="","",INDEX(Schedules!$B$5:$B$14,MATCH(J24,Schedules!$A$5:$A$14,0),)) ->  | R24: =IF(COUNTA(P24)=0,"", _xlfn.IFNA(K24 * (1 - VLOOKUP(TRIM(Q24), Schedules!$A$18:$B$23, 2, FALSE)), K24)) ->  | S24: =IF(COUNTA(P24)=0,"",IFERROR(IF(F24="Replace on Burnout", Calculations!Z11 * (1 - _xlfn.IFNA(VLOOKUP(TRIM(Q24), Schedules!$A$18:$B$23, 2, FALSE), 0)), IF(F24="Early Replacement", Calculations!Y11 * (1 - _xlfn.IFNA(VLOOKUP(TRIM(Q24), Schedules!$A$18:$B$23, 2, FALSE), 0)),0)),0)) ->  | T24: =IF(COUNTA(P24)=0,"",IF(D24="Exterior", 0,IF(F24="Early Replacement",Calculations!AC11 * (1 - _xlfn.IFNA(VLOOKUP(TRIM(Q24), Schedules!$A$18:$B$23, 2, FALSE), 0)),IF(F24="Replace on Burnout",Calculations!AD11 * (1 - _xlfn.IFNA(VLOOKUP(TRIM(Q24), Schedules!A25:B30, 2, FALSE), 0)),0)))) ->  | U24: =IF(COUNTA(P24)=0,"", IF(F24="Early Replacement",(Calculations!Y11*0.15),IF(F24="Replace on Burnout",(Calculations!Z11*0.15)))) -> 
H25: =IF(F25="Early Replacement", IFERROR(VLOOKUP(G25, Lookups!B48:D230, 2, FALSE), 0), IF(F25="Replace on Burnout", IFERROR(VLOOKUP(G25, Lookups!B48:D230, 3, FALSE), 0), IF(E25="User Defined", IFERROR(VLOOKUP(G25, Lookups!B221:C254, 2, FALSE), 0), 0))) -> 0 | K25: =IF(J25="","",INDEX(Schedules!$B$5:$B$14,MATCH(J25,Schedules!$A$5:$A$14,0),)) ->  | R25: =IF(COUNTA(P25)=0,"", _xlfn.IFNA(K25 * (1 - VLOOKUP(TRIM(Q25), Schedules!$A$18:$B$23, 2, FALSE)), K25)) ->  | S25: =IF(COUNTA(P25)=0,"",IFERROR(IF(F25="Replace on Burnout", Calculations!Z12 * (1 - _xlfn.IFNA(VLOOKUP(TRIM(Q25), Schedules!$A$18:$B$23, 2, FALSE), 0)), IF(F25="Early Replacement", Calculations!Y12 * (1 - _xlfn.IFNA(VLOOKUP(TRIM(Q25), Schedules!$A$18:$B$23, 2, FALSE), 0)),0)),0)) ->  | T25: =IF(COUNTA(P25)=0,"",IF(D25="Exterior", 0,IF(F25="Early Replacement",Calculations!AC12 * (1 - _xlfn.IFNA(VLOOKUP(TRIM(Q25), Schedules!$A$18:$B$23, 2, FALSE), 0)),IF(F25="Replace on Burnout",Calculations!AD12 * (1 - _xlfn.IFNA(VLOOKUP(TRIM(Q25), Schedules!A26:B31, 2, FALSE), 0)),0)))) ->  | U25: =IF(COUNTA(P25)=0,"", IF(F25="Early Replacement",(Calculations!Y12*0.15),IF(F25="Replace on Burnout",(Calculations!Z12*0.15)))) -> 
H26: =IF(F26="Early Replacement", IFERROR(VLOOKUP(G26, Lookups!B49:D231, 2, FALSE), 0), IF(F26="Replace on Burnout", IFERROR(VLOOKUP(G26, Lookups!B49:D231, 3, FALSE), 0), IF(E26="User Defined", IFERROR(VLOOKUP(G26, Lookups!B222:C255, 2, FALSE), 0), 0))) -> 0 | K26: =IF(J26="","",INDEX(Schedules!$B$5:$B$14,MATCH(J26,Schedules!$A$5:$A$14,0),)) ->  | R26: =IF(COUNTA(P26)=0,"", _xlfn.IFNA(K26 * (1 - VLOOKUP(TRIM(Q26), Schedules!$A$18:$B$23, 2, FALSE)), K26)) ->  | S26: =IF(COUNTA(P26)=0,"",IFERROR(IF(F26="Replace on Burnout", Calculations!Z13 * (1 - _xlfn.IFNA(VLOOKUP(TRIM(Q26), Schedules!$A$18:$B$23, 2, FALSE), 0)), IF(F26="Early Replacement", Calculations!Y13 * (1 - _xlfn.IFNA(VLOOKUP(TRIM(Q26), Schedules!$A$18:$B$23, 2, FALSE), 0)),0)),0)) ->  | T26: =IF(COUNTA(P26)=0,"",IF(D26="Exterior", 0,IF(F26="Early Replacement",Calculations!AC13 * (1 - _xlfn.IFNA(VLOOKUP(TRIM(Q26), Schedules!$A$18:$B$23, 2, FALSE), 0)),IF(F26="Replace on Burnout",Calculations!AD13 * (1 - _xlfn.IFNA(VLOOKUP(TRIM(Q26), Schedules!A27:B32, 2, FALSE), 0)),0)))) ->  | U26: =IF(COUNTA(P26)=0,"", IF(F26="Early Replacement",(Calculations!Y13*0.15),IF(F26="Replace on Burnout",(Calculations!Z13*0.15)))) -> 
H27: =IF(F27="Early Replacement", IFERROR(VLOOKUP(G27, Lookups!B50:D232, 2, FALSE), 0), IF(F27="Replace on Burnout", IFERROR(VLOOKUP(G27, Lookups!B50:D232, 3, FALSE), 0), IF(E27="User Defined", IFERROR(VLOOKUP(G27, Lookups!B223:C256, 2, FALSE), 0), 0))) -> 0 | K27: =IF(J27="","",INDEX(Schedules!$B$5:$B$14,MATCH(J27,Schedules!$A$5:$A$14,0),)) ->  | R27: =IF(COUNTA(P27)=0,"", _xlfn.IFNA(K27 * (1 - VLOOKUP(TRIM(Q27), Schedules!$A$18:$B$23, 2, FALSE)), K27)) ->  | S27: =IF(COUNTA(P27)=0,"",IFERROR(IF(F27="Replace on Burnout", Calculations!Z14 * (1 - _xlfn.IFNA(VLOOKUP(TRIM(Q27), Schedules!$A$18:$B$23, 2, FALSE), 0)), IF(F27="Early Replacement", Calculations!Y14 * (1 - _xlfn.IFNA(VLOOKUP(TRIM(Q27), Schedules!$A$18:$B$23, 2, FALSE), 0)),0)),0)) ->  | T27: =IF(COUNTA(P27)=0,"",IF(D27="Exterior", 0,IF(F27="Early Replacement",Calculations!AC14 * (1 - _xlfn.IFNA(VLOOKUP(TRIM(Q27), Schedules!$A$18:$B$23, 2, FALSE), 0)),IF(F27="Replace on Burnout",Calculations!AD14 * (1 - _xlfn.IFNA(VLOOKUP(TRIM(Q27), Schedules!A28:B33, 2, FALSE), 0)),0)))) ->  | U27: =IF(COUNTA(P27)=0,"", IF(F27="Early Replacement",(Calculations!Y14*0.15),IF(F27="Replace on Burnout",(Calculations!Z14*0.15)))) -> 
H28: =IF(F28="Early Replacement", IFERROR(VLOOKUP(G28, Lookups!B51:D233, 2, FALSE), 0), IF(F28="Replace on Burnout", IFERROR(VLOOKUP(G28, Lookups!B51:D233, 3, FALSE), 0), IF(E28="User Defined", IFERROR(VLOOKUP(G28, Lookups!B224:C257, 2, FALSE), 0), 0))) -> 0 | K28: =IF(J28="","",INDEX(Schedules!$B$5:$B$14,MATCH(J28,Schedules!$A$5:$A$14,0),)) ->  | R28: =IF(COUNTA(P28)=0,"", _xlfn.IFNA(K28 * (1 - VLOOKUP(TRIM(Q28), Schedules!$A$18:$B$23, 2, FALSE)), K28)) ->  | S28: =IF(COUNTA(P28)=0,"",IFERROR(IF(F28="Replace on Burnout", Calculations!Z15 * (1 - _xlfn.IFNA(VLOOKUP(TRIM(Q28), Schedules!$A$18:$B$23, 2, FALSE), 0)), IF(F28="Early Replacement", Calculations!Y15 * (1 - _xlfn.IFNA(VLOOKUP(TRIM(Q28), Schedules!$A$18:$B$23, 2, FALSE), 0)),0)),0)) ->  | T28: =IF(COUNTA(P28)=0,"",IF(D28="Exterior", 0,IF(F28="Early Replacement",Calculations!AC15 * (1 - _xlfn.IFNA(VLOOKUP(TRIM(Q28), Schedules!$A$18:$B$23, 2, FALSE), 0)),IF(F28="Replace on Burnout",Calculations!AD15 * (1 - _xlfn.IFNA(VLOOKUP(TRIM(Q28), Schedules!A29:B34, 2, FALSE), 0)),0)))) ->  | U28: =IF(COUNTA(P28)=0,"", IF(F28="Early Replacement",(Calculations!Y15*0.15),IF(F28="Replace on Burnout",(Calculations!Z15*0.15)))) -> 
H29: =IF(F29="Early Replacement", IFERROR(VLOOKUP(G29, Lookups!B52:D234, 2, FALSE), 0), IF(F29="Replace on Burnout", IFERROR(VLOOKUP(G29, Lookups!B52:D234, 3, FALSE), 0), IF(E29="User Defined", IFERROR(VLOOKUP(G29, Lookups!B225:C258, 2, FALSE), 0), 0))) -> 0 | K29: =IF(J29="","",INDEX(Schedules!$B$5:$B$14,MATCH(J29,Schedules!$A$5:$A$14,0),)) ->  | R29: =IF(COUNTA(P29)=0,"", _xlfn.IFNA(K29 * (1 - VLOOKUP(TRIM(Q29), Schedules!$A$18:$B$23, 2, FALSE)), K29)) ->  | S29: =IF(COUNTA(P29)=0,"",IFERROR(IF(F29="Replace on Burnout", Calculations!Z16 * (1 - _xlfn.IFNA(VLOOKUP(TRIM(Q29), Schedules!$A$18:$B$23, 2, FALSE), 0)), IF(F29="Early Replacement", Calculations!Y16 * (1 - _xlfn.IFNA(VLOOKUP(TRIM(Q29), Schedules!$A$18:$B$23, 2, FALSE), 0)),0)),0)) ->  | T29: =IF(COUNTA(P29)=0,"",IF(D29="Exterior", 0,IF(F29="Early Replacement",Calculations!AC16 * (1 - _xlfn.IFNA(VLOOKUP(TRIM(Q29), Schedules!$A$18:$B$23, 2, FALSE), 0)),IF(F29="Replace on Burnout",Calculations!AD16 * (1 - _xlfn.IFNA(VLOOKUP(TRIM(Q29), Schedules!A30:B35, 2, FALSE), 0)),0)))) ->  | U29: =IF(COUNTA(P29)=0,"", IF(F29="Early Replacement",(Calculations!Y16*0.15),IF(F29="Replace on Burnout",(Calculations!Z16*0.15)))) -> 
H30: =IF(F30="Early Replacement", IFERROR(VLOOKUP(G30, Lookups!B53:D235, 2, FALSE), 0), IF(F30="Replace on Burnout", IFERROR(VLOOKUP(G30, Lookups!B53:D235, 3, FALSE), 0), IF(E30="User Defined", IFERROR(VLOOKUP(G30, Lookups!B226:C259, 2, FALSE), 0), 0))) -> 0 | K30: =IF(J30="","",INDEX(Schedules!$B$5:$B$14,MATCH(J30,Schedules!$A$5:$A$14,0),)) ->  | R30: =IF(COUNTA(P30)=0,"", _xlfn.IFNA(K30 * (1 - VLOOKUP(TRIM(Q30), Schedules!$A$18:$B$23, 2, FALSE)), K30)) ->  | S30: =IF(COUNTA(P30)=0,"",IFERROR(IF(F30="Replace on Burnout", Calculations!Z17 * (1 - _xlfn.IFNA(VLOOKUP(TRIM(Q30), Schedules!$A$18:$B$23, 2, FALSE), 0)), IF(F30="Early Replacement", Calculations!Y17 * (1 - _xlfn.IFNA(VLOOKUP(TRIM(Q30), Schedules!$A$18:$B$23, 2, FALSE), 0)),0)),0)) ->  | T30: =IF(COUNTA(P30)=0,"",IF(D30="Exterior", 0,IF(F30="Early Replacement",Calculations!AC17 * (1 - _xlfn.IFNA(VLOOKUP(TRIM(Q30), Schedules!$A$18:$B$23, 2, FALSE), 0)),IF(F30="Replace on Burnout",Calculations!AD17 * (1 - _xlfn.IFNA(VLOOKUP(TRIM(Q30), Schedules!A31:B36, 2, FALSE), 0)),0)))) ->  | U30: =IF(COUNTA(P30)=0,"", IF(F30="Early Replacement",(Calculations!Y17*0.15),IF(F30="Replace on Burnout",(Calculations!Z17*0.15)))) -> 
H31: =IF(F31="Early Replacement", IFERROR(VLOOKUP(G31, Lookups!B54:D236, 2, FALSE), 0), IF(F31="Replace on Burnout", IFERROR(VLOOKUP(G31, Lookups!B54:D236, 3, FALSE), 0), IF(E31="User Defined", IFERROR(VLOOKUP(G31, Lookups!B227:C260, 2, FALSE), 0), 0))) -> 0 | K31: =IF(J31="","",INDEX(Schedules!$B$5:$B$14,MATCH(J31,Schedules!$A$5:$A$14,0),)) ->  | R31: =IF(COUNTA(P31)=0,"", _xlfn.IFNA(K31 * (1 - VLOOKUP(TRIM(Q31), Schedules!$A$18:$B$23, 2, FALSE)), K31)) ->  | S31: =IF(COUNTA(P31)=0,"",IFERROR(IF(F31="Replace on Burnout", Calculations!Z18 * (1 - _xlfn.IFNA(VLOOKUP(TRIM(Q31), Schedules!$A$18:$B$23, 2, FALSE), 0)), IF(F31="Early Replacement", Calculations!Y18 * (1 - _xlfn.IFNA(VLOOKUP(TRIM(Q31), Schedules!$A$18:$B$23, 2, FALSE), 0)),0)),0)) ->  | T31: =IF(COUNTA(P31)=0,"",IF(D31="Exterior", 0,IF(F31="Early Replacement",Calculations!AC18 * (1 - _xlfn.IFNA(VLOOKUP(TRIM(Q31), Schedules!$A$18:$B$23, 2, FALSE), 0)),IF(F31="Replace on Burnout",Calculations!AD18 * (1 - _xlfn.IFNA(VLOOKUP(TRIM(Q31), Schedules!A32:B37, 2, FALSE), 0)),0)))) ->  | U31: =IF(COUNTA(P31)=0,"", IF(F31="Early Replacement",(Calculations!Y18*0.15),IF(F31="Replace on Burnout",(Calculations!Z18*0.15)))) -> 
H32: =IF(F32="Early Replacement", IFERROR(VLOOKUP(G32, Lookups!B55:D237, 2, FALSE), 0), IF(F32="Replace on Burnout", IFERROR(VLOOKUP(G32, Lookups!B55:D237, 3, FALSE), 0), IF(E32="User Defined", IFERROR(VLOOKUP(G32, Lookups!B228:C261, 2, FALSE), 0), 0))) -> 0 | K32: =IF(J32="","",INDEX(Schedules!$B$5:$B$14,MATCH(J32,Schedules!$A$5:$A$14,0),)) ->  | R32: =IF(COUNTA(P32)=0,"", _xlfn.IFNA(K32 * (1 - VLOOKUP(TRIM(Q32), Schedules!$A$18:$B$23, 2, FALSE)), K32)) ->  | S32: =IF(COUNTA(P32)=0,"",IFERROR(IF(F32="Replace on Burnout", Calculations!Z19 * (1 - _xlfn.IFNA(VLOOKUP(TRIM(Q32), Schedules!$A$18:$B$23, 2, FALSE), 0)), IF(F32="Early Replacement", Calculations!Y19 * (1 - _xlfn.IFNA(VLOOKUP(TRIM(Q32), Schedules!$A$18:$B$23, 2, FALSE), 0)),0)),0)) ->  | T32: =IF(COUNTA(P32)=0,"",IF(D32="Exterior", 0,IF(F32="Early Replacement",Calculations!AC19 * (1 - _xlfn.IFNA(VLOOKUP(TRIM(Q32), Schedules!$A$18:$B$23, 2, FALSE), 0)),IF(F32="Replace on Burnout",Calculations!AD19 * (1 - _xlfn.IFNA(VLOOKUP(TRIM(Q32), Schedules!A33:B38, 2, FALSE), 0)),0)))) ->  | U32: =IF(COUNTA(P32)=0,"", IF(F32="Early Replacement",(Calculations!Y19*0.15),IF(F32="Replace on Burnout",(Calculations!Z19*0.15)))) -> 
H33: =IF(F33="Early Replacement", IFERROR(VLOOKUP(G33, Lookups!B56:D238, 2, FALSE), 0), IF(F33="Replace on Burnout", IFERROR(VLOOKUP(G33, Lookups!B56:D238, 3, FALSE), 0), IF(E33="User Defined", IFERROR(VLOOKUP(G33, Lookups!B229:C262, 2, FALSE), 0), 0))) -> 0 | K33: =IF(J33="","",INDEX(Schedules!$B$5:$B$14,MATCH(J33,Schedules!$A$5:$A$14,0),)) ->  | R33: =IF(COUNTA(P33)=0,"", _xlfn.IFNA(K33 * (1 - VLOOKUP(TRIM(Q33), Schedules!$A$18:$B$23, 2, FALSE)), K33)) ->  | S33: =IF(COUNTA(P33)=0,"",IFERROR(IF(F33="Replace on Burnout", Calculations!Z20 * (1 - _xlfn.IFNA(VLOOKUP(TRIM(Q33), Schedules!$A$18:$B$23, 2, FALSE), 0)), IF(F33="Early Replacement", Calculations!Y20 * (1 - _xlfn.IFNA(VLOOKUP(TRIM(Q33), Schedules!$A$18:$B$23, 2, FALSE), 0)),0)),0)) ->  | T33: =IF(COUNTA(P33)=0,"",IF(D33="Exterior", 0,IF(F33="Early Replacement",Calculations!AC20 * (1 - _xlfn.IFNA(VLOOKUP(TRIM(Q33), Schedules!$A$18:$B$23, 2, FALSE), 0)),IF(F33="Replace on Burnout",Calculations!AD20 * (1 - _xlfn.IFNA(VLOOKUP(TRIM(Q33), Schedules!A34:B39, 2, FALSE), 0)),0)))) ->  | U33: =IF(COUNTA(P33)=0,"", IF(F33="Early Replacement",(Calculations!Y20*0.15),IF(F33="Replace on Burnout",(Calculations!Z20*0.15)))) -> 
H34: =IF(F34="Early Replacement", IFERROR(VLOOKUP(G34, Lookups!B57:D239, 2, FALSE), 0), IF(F34="Replace on Burnout", IFERROR(VLOOKUP(G34, Lookups!B57:D239, 3, FALSE), 0), IF(E34="User Defined", IFERROR(VLOOKUP(G34, Lookups!B230:C263, 2, FALSE), 0), 0))) -> 0 | K34: =IF(J34="","",INDEX(Schedules!$B$5:$B$14,MATCH(J34,Schedules!$A$5:$A$14,0),)) ->  | R34: =IF(COUNTA(P34)=0,"", _xlfn.IFNA(K34 * (1 - VLOOKUP(TRIM(Q34), Schedules!$A$18:$B$23, 2, FALSE)), K34)) ->  | S34: =IF(COUNTA(P34)=0,"",IFERROR(IF(F34="Replace on Burnout", Calculations!Z21 * (1 - _xlfn.IFNA(VLOOKUP(TRIM(Q34), Schedules!$A$18:$B$23, 2, FALSE), 0)), IF(F34="Early Replacement", Calculations!Y21 * (1 - _xlfn.IFNA(VLOOKUP(TRIM(Q34), Schedules!$A$18:$B$23, 2, FALSE), 0)),0)),0)) ->  | T34: =IF(COUNTA(P34)=0,"",IF(D34="Exterior", 0,IF(F34="Early Replacement",Calculations!AC21 * (1 - _xlfn.IFNA(VLOOKUP(TRIM(Q34), Schedules!$A$18:$B$23, 2, FALSE), 0)),IF(F34="Replace on Burnout",Calculations!AD21 * (1 - _xlfn.IFNA(VLOOKUP(TRIM(Q34), Schedules!A35:B40, 2, FALSE), 0)),0)))) ->  | U34: =IF(COUNTA(P34)=0,"", IF(F34="Early Replacement",(Calculations!Y21*0.15),IF(F34="Replace on Burnout",(Calculations!Z21*0.15)))) -> 
H35: =IF(F35="Early Replacement", IFERROR(VLOOKUP(G35, Lookups!B58:D240, 2, FALSE), 0), IF(F35="Replace on Burnout", IFERROR(VLOOKUP(G35, Lookups!B58:D240, 3, FALSE), 0), IF(E35="User Defined", IFERROR(VLOOKUP(G35, Lookups!B231:C264, 2, FALSE), 0), 0))) -> 0 | K35: =IF(J35="","",INDEX(Schedules!$B$5:$B$14,MATCH(J35,Schedules!$A$5:$A$14,0),)) ->  | R35: =IF(COUNTA(P35)=0,"", _xlfn.IFNA(K35 * (1 - VLOOKUP(TRIM(Q35), Schedules!$A$18:$B$23, 2, FALSE)), K35)) ->  | S35: =IF(COUNTA(P35)=0,"",IFERROR(IF(F35="Replace on Burnout", Calculations!Z22 * (1 - _xlfn.IFNA(VLOOKUP(TRIM(Q35), Schedules!$A$18:$B$23, 2, FALSE), 0)), IF(F35="Early Replacement", Calculations!Y22 * (1 - _xlfn.IFNA(VLOOKUP(TRIM(Q35), Schedules!$A$18:$B$23, 2, FALSE), 0)),0)),0)) ->  | T35: =IF(COUNTA(P35)=0,"",IF(D35="Exterior", 0,IF(F35="Early Replacement",Calculations!AC22 * (1 - _xlfn.IFNA(VLOOKUP(TRIM(Q35), Schedules!$A$18:$B$23, 2, FALSE), 0)),IF(F35="Replace on Burnout",Calculations!AD22 * (1 - _xlfn.IFNA(VLOOKUP(TRIM(Q35), Schedules!A36:B41, 2, FALSE), 0)),0)))) ->  | U35: =IF(COUNTA(P35)=0,"", IF(F35="Early Replacement",(Calculations!Y22*0.15),IF(F35="Replace on Burnout",(Calculations!Z22*0.15)))) -> 
H36: =IF(F36="Early Replacement", IFERROR(VLOOKUP(G36, Lookups!B59:D241, 2, FALSE), 0), IF(F36="Replace on Burnout", IFERROR(VLOOKUP(G36, Lookups!B59:D241, 3, FALSE), 0), IF(E36="User Defined", IFERROR(VLOOKUP(G36, Lookups!B232:C265, 2, FALSE), 0), 0))) -> 0 | K36: =IF(J36="","",INDEX(Schedules!$B$5:$B$14,MATCH(J36,Schedules!$A$5:$A$14,0),)) ->  | R36: =IF(COUNTA(P36)=0,"", _xlfn.IFNA(K36 * (1 - VLOOKUP(TRIM(Q36), Schedules!$A$18:$B$23, 2, FALSE)), K36)) ->  | S36: =IF(COUNTA(P36)=0,"",IFERROR(IF(F36="Replace on Burnout", Calculations!Z23 * (1 - _xlfn.IFNA(VLOOKUP(TRIM(Q36), Schedules!$A$18:$B$23, 2, FALSE), 0)), IF(F36="Early Replacement", Calculations!Y23 * (1 - _xlfn.IFNA(VLOOKUP(TRIM(Q36), Schedules!$A$18:$B$23, 2, FALSE), 0)),0)),0)) ->  | T36: =IF(COUNTA(P36)=0,"",IF(D36="Exterior", 0,IF(F36="Early Replacement",Calculations!AC23 * (1 - _xlfn.IFNA(VLOOKUP(TRIM(Q36), Schedules!$A$18:$B$23, 2, FALSE), 0)),IF(F36="Replace on Burnout",Calculations!AD23 * (1 - _xlfn.IFNA(VLOOKUP(TRIM(Q36), Schedules!A37:B42, 2, FALSE), 0)),0)))) ->  | U36: =IF(COUNTA(P36)=0,"", IF(F36="Early Replacement",(Calculations!Y23*0.15),IF(F36="Replace on Burnout",(Calculations!Z23*0.15)))) -> 
H37: =IF(F37="Early Replacement", IFERROR(VLOOKUP(G37, Lookups!B60:D242, 2, FALSE), 0), IF(F37="Replace on Burnout", IFERROR(VLOOKUP(G37, Lookups!B60:D242, 3, FALSE), 0), IF(E37="User Defined", IFERROR(VLOOKUP(G37, Lookups!B233:C266, 2, FALSE), 0), 0))) -> 0 | K37: =IF(J37="","",INDEX(Schedules!$B$5:$B$14,MATCH(J37,Schedules!$A$5:$A$14,0),)) ->  | R37: =IF(COUNTA(P37)=0,"", _xlfn.IFNA(K37 * (1 - VLOOKUP(TRIM(Q37), Schedules!$A$18:$B$23, 2, FALSE)), K37)) ->  | S37: =IF(COUNTA(P37)=0,"",IFERROR(IF(F37="Replace on Burnout", Calculations!Z24 * (1 - _xlfn.IFNA(VLOOKUP(TRIM(Q37), Schedules!$A$18:$B$23, 2, FALSE), 0)), IF(F37="Early Replacement", Calculations!Y24 * (1 - _xlfn.IFNA(VLOOKUP(TRIM(Q37), Schedules!$A$18:$B$23, 2, FALSE), 0)),0)),0)) ->  | T37: =IF(COUNTA(P37)=0,"",IF(D37="Exterior", 0,IF(F37="Early Replacement",Calculations!AC24 * (1 - _xlfn.IFNA(VLOOKUP(TRIM(Q37), Schedules!$A$18:$B$23, 2, FALSE), 0)),IF(F37="Replace on Burnout",Calculations!AD24 * (1 - _xlfn.IFNA(VLOOKUP(TRIM(Q37), Schedules!A38:B43, 2, FALSE), 0)),0)))) ->  | U37: =IF(COUNTA(P37)=0,"", IF(F37="Early Replacement",(Calculations!Y24*0.15),IF(F37="Replace on Burnout",(Calculations!Z24*0.15)))) -> 
H38: =IF(F38="Early Replacement", IFERROR(VLOOKUP(G38, Lookups!B61:D243, 2, FALSE), 0), IF(F38="Replace on Burnout", IFERROR(VLOOKUP(G38, Lookups!B61:D243, 3, FALSE), 0), IF(E38="User Defined", IFERROR(VLOOKUP(G38, Lookups!B234:C267, 2, FALSE), 0), 0))) -> 0 | K38: =IF(J38="","",INDEX(Schedules!$B$5:$B$14,MATCH(J38,Schedules!$A$5:$A$14,0),)) ->  | R38: =IF(COUNTA(P38)=0,"", _xlfn.IFNA(K38 * (1 - VLOOKUP(TRIM(Q38), Schedules!$A$18:$B$23, 2, FALSE)), K38)) ->  | S38: =IF(COUNTA(P38)=0,"",IFERROR(IF(F38="Replace on Burnout", Calculations!Z25 * (1 - _xlfn.IFNA(VLOOKUP(TRIM(Q38), Schedules!$A$18:$B$23, 2, FALSE), 0)), IF(F38="Early Replacement", Calculations!Y25 * (1 - _xlfn.IFNA(VLOOKUP(TRIM(Q38), Schedules!$A$18:$B$23, 2, FALSE), 0)),0)),0)) ->  | T38: =IF(COUNTA(P38)=0,"",IF(D38="Exterior", 0,IF(F38="Early Replacement",Calculations!AC25 * (1 - _xlfn.IFNA(VLOOKUP(TRIM(Q38), Schedules!$A$18:$B$23, 2, FALSE), 0)),IF(F38="Replace on Burnout",Calculations!AD25 * (1 - _xlfn.IFNA(VLOOKUP(TRIM(Q38), Schedules!A39:B44, 2, FALSE), 0)),0)))) ->  | U38: =IF(COUNTA(P38)=0,"", IF(F38="Early Replacement",(Calculations!Y25*0.15),IF(F38="Replace on Burnout",(Calculations!Z25*0.15)))) -> 
H39: =IF(F39="Early Replacement", IFERROR(VLOOKUP(G39, Lookups!B62:D244, 2, FALSE), 0), IF(F39="Replace on Burnout", IFERROR(VLOOKUP(G39, Lookups!B62:D244, 3, FALSE), 0), IF(E39="User Defined", IFERROR(VLOOKUP(G39, Lookups!B235:C268, 2, FALSE), 0), 0))) -> 0 | K39: =IF(J39="","",INDEX(Schedules!$B$5:$B$14,MATCH(J39,Schedules!$A$5:$A$14,0),)) ->  | R39: =IF(COUNTA(P39)=0,"", _xlfn.IFNA(K39 * (1 - VLOOKUP(TRIM(Q39), Schedules!$A$18:$B$23, 2, FALSE)), K39)) ->  | S39: =IF(COUNTA(P39)=0,"",IFERROR(IF(F39="Replace on Burnout", Calculations!Z26 * (1 - _xlfn.IFNA(VLOOKUP(TRIM(Q39), Schedules!$A$18:$B$23, 2, FALSE), 0)), IF(F39="Early Replacement", Calculations!Y26 * (1 - _xlfn.IFNA(VLOOKUP(TRIM(Q39), Schedules!$A$18:$B$23, 2, FALSE), 0)),0)),0)) ->  | T39: =IF(COUNTA(P39)=0,"",IF(D39="Exterior", 0,IF(F39="Early Replacement",Calculations!AC26 * (1 - _xlfn.IFNA(VLOOKUP(TRIM(Q39), Schedules!$A$18:$B$23, 2, FALSE), 0)),IF(F39="Replace on Burnout",Calculations!AD26 * (1 - _xlfn.IFNA(VLOOKUP(TRIM(Q39), Schedules!A40:B45, 2, FALSE), 0)),0)))) ->  | U39: =IF(COUNTA(P39)=0,"", IF(F39="Early Replacement",(Calculations!Y26*0.15),IF(F39="Replace on Burnout",(Calculations!Z26*0.15)))) -> 
H40: =IF(F40="Early Replacement", IFERROR(VLOOKUP(G40, Lookups!B63:D245, 2, FALSE), 0), IF(F40="Replace on Burnout", IFERROR(VLOOKUP(G40, Lookups!B63:D245, 3, FALSE), 0), IF(E40="User Defined", IFERROR(VLOOKUP(G40, Lookups!B236:C269, 2, FALSE), 0), 0))) -> 0 | K40: =IF(J40="","",INDEX(Schedules!$B$5:$B$14,MATCH(J40,Schedules!$A$5:$A$14,0),)) ->  | R40: =IF(COUNTA(P40)=0,"", _xlfn.IFNA(K40 * (1 - VLOOKUP(TRIM(Q40), Schedules!$A$18:$B$23, 2, FALSE)), K40)) ->  | S40: =IF(COUNTA(P40)=0,"",IFERROR(IF(F40="Replace on Burnout", Calculations!Z27 * (1 - _xlfn.IFNA(VLOOKUP(TRIM(Q40), Schedules!$A$18:$B$23, 2, FALSE), 0)), IF(F40="Early Replacement", Calculations!Y27 * (1 - _xlfn.IFNA(VLOOKUP(TRIM(Q40), Schedules!$A$18:$B$23, 2, FALSE), 0)),0)),0)) ->  | T40: =IF(COUNTA(P40)=0,"",IF(D40="Exterior", 0,IF(F40="Early Replacement",Calculations!AC27 * (1 - _xlfn.IFNA(VLOOKUP(TRIM(Q40), Schedules!$A$18:$B$23, 2, FALSE), 0)),IF(F40="Replace on Burnout",Calculations!AD27 * (1 - _xlfn.IFNA(VLOOKUP(TRIM(Q40), Schedules!A41:B46, 2, FALSE), 0)),0)))) ->  | U40: =IF(COUNTA(P40)=0,"", IF(F40="Early Replacement",(Calculations!Y27*0.15),IF(F40="Replace on Burnout",(Calculations!Z27*0.15)))) -> 
H41: =IF(F41="Early Replacement", IFERROR(VLOOKUP(G41, Lookups!B64:D246, 2, FALSE), 0), IF(F41="Replace on Burnout", IFERROR(VLOOKUP(G41, Lookups!B64:D246, 3, FALSE), 0), IF(E41="User Defined", IFERROR(VLOOKUP(G41, Lookups!B237:C270, 2, FALSE), 0), 0))) -> 0 | K41: =IF(J41="","",INDEX(Schedules!$B$5:$B$14,MATCH(J41,Schedules!$A$5:$A$14,0),)) ->  | R41: =IF(COUNTA(P41)=0,"", _xlfn.IFNA(K41 * (1 - VLOOKUP(TRIM(Q41), Schedules!$A$18:$B$23, 2, FALSE)), K41)) ->  | S41: =IF(COUNTA(P41)=0,"",IFERROR(IF(F41="Replace on Burnout", Calculations!Z28 * (1 - _xlfn.IFNA(VLOOKUP(TRIM(Q41), Schedules!$A$18:$B$23, 2, FALSE), 0)), IF(F41="Early Replacement", Calculations!Y28 * (1 - _xlfn.IFNA(VLOOKUP(TRIM(Q41), Schedules!$A$18:$B$23, 2, FALSE), 0)),0)),0)) ->  | T41: =IF(COUNTA(P41)=0,"",IF(D41="Exterior", 0,IF(F41="Early Replacement",Calculations!AC28 * (1 - _xlfn.IFNA(VLOOKUP(TRIM(Q41), Schedules!$A$18:$B$23, 2, FALSE), 0)),IF(F41="Replace on Burnout",Calculations!AD28 * (1 - _xlfn.IFNA(VLOOKUP(TRIM(Q41), Schedules!A42:B47, 2, FALSE), 0)),0)))) ->  | U41: =IF(COUNTA(P41)=0,"", IF(F41="Early Replacement",(Calculations!Y28*0.15),IF(F41="Replace on Burnout",(Calculations!Z28*0.15)))) -> 
H42: =IF(F42="Early Replacement", IFERROR(VLOOKUP(G42, Lookups!B65:D247, 2, FALSE), 0), IF(F42="Replace on Burnout", IFERROR(VLOOKUP(G42, Lookups!B65:D247, 3, FALSE), 0), IF(E42="User Defined", IFERROR(VLOOKUP(G42, Lookups!B238:C271, 2, FALSE), 0), 0))) -> 0 | K42: =IF(J42="","",INDEX(Schedules!$B$5:$B$14,MATCH(J42,Schedules!$A$5:$A$14,0),)) ->  | R42: =IF(COUNTA(P42)=0,"", _xlfn.IFNA(K42 * (1 - VLOOKUP(TRIM(Q42), Schedules!$A$18:$B$23, 2, FALSE)), K42)) ->  | S42: =IF(COUNTA(P42)=0,"",IFERROR(IF(F42="Replace on Burnout", Calculations!Z29 * (1 - _xlfn.IFNA(VLOOKUP(TRIM(Q42), Schedules!$A$18:$B$23, 2, FALSE), 0)), IF(F42="Early Replacement", Calculations!Y29 * (1 - _xlfn.IFNA(VLOOKUP(TRIM(Q42), Schedules!$A$18:$B$23, 2, FALSE), 0)),0)),0)) ->  | T42: =IF(COUNTA(P42)=0,"",IF(D42="Exterior", 0,IF(F42="Early Replacement",Calculations!AC29 * (1 - _xlfn.IFNA(VLOOKUP(TRIM(Q42), Schedules!$A$18:$B$23, 2, FALSE), 0)),IF(F42="Replace on Burnout",Calculations!AD29 * (1 - _xlfn.IFNA(VLOOKUP(TRIM(Q42), Schedules!A43:B48, 2, FALSE), 0)),0)))) ->  | U42: =IF(COUNTA(P42)=0,"", IF(F42="Early Replacement",(Calculations!Y29*0.15),IF(F42="Replace on Burnout",(Calculations!Z29*0.15)))) -> 
H43: =IF(F43="Early Replacement", IFERROR(VLOOKUP(G43, Lookups!B66:D248, 2, FALSE), 0), IF(F43="Replace on Burnout", IFERROR(VLOOKUP(G43, Lookups!B66:D248, 3, FALSE), 0), IF(E43="User Defined", IFERROR(VLOOKUP(G43, Lookups!B239:C272, 2, FALSE), 0), 0))) -> 0 | K43: =IF(J43="","",INDEX(Schedules!$B$5:$B$14,MATCH(J43,Schedules!$A$5:$A$14,0),)) ->  | R43: =IF(COUNTA(P43)=0,"", _xlfn.IFNA(K43 * (1 - VLOOKUP(TRIM(Q43), Schedules!$A$18:$B$23, 2, FALSE)), K43)) ->  | S43: =IF(COUNTA(P43)=0,"",IFERROR(IF(F43="Replace on Burnout", Calculations!Z30 * (1 - _xlfn.IFNA(VLOOKUP(TRIM(Q43), Schedules!$A$18:$B$23, 2, FALSE), 0)), IF(F43="Early Replacement", Calculations!Y30 * (1 - _xlfn.IFNA(VLOOKUP(TRIM(Q43), Schedules!$A$18:$B$23, 2, FALSE), 0)),0)),0)) ->  | T43: =IF(COUNTA(P43)=0,"",IF(D43="Exterior", 0,IF(F43="Early Replacement",Calculations!AC30 * (1 - _xlfn.IFNA(VLOOKUP(TRIM(Q43), Schedules!$A$18:$B$23, 2, FALSE), 0)),IF(F43="Replace on Burnout",Calculations!AD30 * (1 - _xlfn.IFNA(VLOOKUP(TRIM(Q43), Schedules!A44:B49, 2, FALSE), 0)),0)))) ->  | U43: =IF(COUNTA(P43)=0,"", IF(F43="Early Replacement",(Calculations!Y30*0.15),IF(F43="Replace on Burnout",(Calculations!Z30*0.15)))) -> 
H44: =IF(F44="Early Replacement", IFERROR(VLOOKUP(G44, Lookups!B67:D249, 2, FALSE), 0), IF(F44="Replace on Burnout", IFERROR(VLOOKUP(G44, Lookups!B67:D249, 3, FALSE), 0), IF(E44="User Defined", IFERROR(VLOOKUP(G44, Lookups!B240:C273, 2, FALSE), 0), 0))) -> 0 | K44: =IF(J44="","",INDEX(Schedules!$B$5:$B$14,MATCH(J44,Schedules!$A$5:$A$14,0),)) ->  | R44: =IF(COUNTA(P44)=0,"", _xlfn.IFNA(K44 * (1 - VLOOKUP(TRIM(Q44), Schedules!$A$18:$B$23, 2, FALSE)), K44)) ->  | S44: =IF(COUNTA(P44)=0,"",IFERROR(IF(F44="Replace on Burnout", Calculations!Z31 * (1 - _xlfn.IFNA(VLOOKUP(TRIM(Q44), Schedules!$A$18:$B$23, 2, FALSE), 0)), IF(F44="Early Replacement", Calculations!Y31 * (1 - _xlfn.IFNA(VLOOKUP(TRIM(Q44), Schedules!$A$18:$B$23, 2, FALSE), 0)),0)),0)) ->  | T44: =IF(COUNTA(P44)=0,"",IF(D44="Exterior", 0,IF(F44="Early Replacement",Calculations!AC31 * (1 - _xlfn.IFNA(VLOOKUP(TRIM(Q44), Schedules!$A$18:$B$23, 2, FALSE), 0)),IF(F44="Replace on Burnout",Calculations!AD31 * (1 - _xlfn.IFNA(VLOOKUP(TRIM(Q44), Schedules!A45:B50, 2, FALSE), 0)),0)))) ->  | U44: =IF(COUNTA(P44)=0,"", IF(F44="Early Replacement",(Calculations!Y31*0.15),IF(F44="Replace on Burnout",(Calculations!Z31*0.15)))) -> 
H45: =IF(F45="Early Replacement", IFERROR(VLOOKUP(G45, Lookups!B68:D250, 2, FALSE), 0), IF(F45="Replace on Burnout", IFERROR(VLOOKUP(G45, Lookups!B68:D250, 3, FALSE), 0), IF(E45="User Defined", IFERROR(VLOOKUP(G45, Lookups!B241:C274, 2, FALSE), 0), 0))) -> 0 | K45: =IF(J45="","",INDEX(Schedules!$B$5:$B$14,MATCH(J45,Schedules!$A$5:$A$14,0),)) ->  | R45: =IF(COUNTA(P45)=0,"", _xlfn.IFNA(K45 * (1 - VLOOKUP(TRIM(Q45), Schedules!$A$18:$B$23, 2, FALSE)), K45)) ->  | S45: =IF(COUNTA(P45)=0,"",IFERROR(IF(F45="Replace on Burnout", Calculations!Z32 * (1 - _xlfn.IFNA(VLOOKUP(TRIM(Q45), Schedules!$A$18:$B$23, 2, FALSE), 0)), IF(F45="Early Replacement", Calculations!Y32 * (1 - _xlfn.IFNA(VLOOKUP(TRIM(Q45), Schedules!$A$18:$B$23, 2, FALSE), 0)),0)),0)) ->  | T45: =IF(COUNTA(P45)=0,"",IF(D45="Exterior", 0,IF(F45="Early Replacement",Calculations!AC32 * (1 - _xlfn.IFNA(VLOOKUP(TRIM(Q45), Schedules!$A$18:$B$23, 2, FALSE), 0)),IF(F45="Replace on Burnout",Calculations!AD32 * (1 - _xlfn.IFNA(VLOOKUP(TRIM(Q45), Schedules!A46:B51, 2, FALSE), 0)),0)))) ->  | U45: =IF(COUNTA(P45)=0,"", IF(F45="Early Replacement",(Calculations!Y32*0.15),IF(F45="Replace on Burnout",(Calculations!Z32*0.15)))) -> 
H46: =IF(F46="Early Replacement", IFERROR(VLOOKUP(G46, Lookups!B69:D251, 2, FALSE), 0), IF(F46="Replace on Burnout", IFERROR(VLOOKUP(G46, Lookups!B69:D251, 3, FALSE), 0), IF(E46="User Defined", IFERROR(VLOOKUP(G46, Lookups!B242:C275, 2, FALSE), 0), 0))) -> 0 | K46: =IF(J46="","",INDEX(Schedules!$B$5:$B$14,MATCH(J46,Schedules!$A$5:$A$14,0),)) ->  | R46: =IF(COUNTA(P46)=0,"", _xlfn.IFNA(K46 * (1 - VLOOKUP(TRIM(Q46), Schedules!$A$18:$B$23, 2, FALSE)), K46)) ->  | S46: =IF(COUNTA(P46)=0,"",IFERROR(IF(F46="Replace on Burnout", Calculations!Z33 * (1 - _xlfn.IFNA(VLOOKUP(TRIM(Q46), Schedules!$A$18:$B$23, 2, FALSE), 0)), IF(F46="Early Replacement", Calculations!Y33 * (1 - _xlfn.IFNA(VLOOKUP(TRIM(Q46), Schedules!$A$18:$B$23, 2, FALSE), 0)),0)),0)) ->  | T46: =IF(COUNTA(P46)=0,"",IF(D46="Exterior", 0,IF(F46="Early Replacement",Calculations!AC33 * (1 - _xlfn.IFNA(VLOOKUP(TRIM(Q46), Schedules!$A$18:$B$23, 2, FALSE), 0)),IF(F46="Replace on Burnout",Calculations!AD33 * (1 - _xlfn.IFNA(VLOOKUP(TRIM(Q46), Schedules!A47:B52, 2, FALSE), 0)),0)))) ->  | U46: =IF(COUNTA(P46)=0,"", IF(F46="Early Replacement",(Calculations!Y33*0.15),IF(F46="Replace on Burnout",(Calculations!Z33*0.15)))) -> 
H47: =IF(F47="Early Replacement", IFERROR(VLOOKUP(G47, Lookups!B70:D252, 2, FALSE), 0), IF(F47="Replace on Burnout", IFERROR(VLOOKUP(G47, Lookups!B70:D252, 3, FALSE), 0), IF(E47="User Defined", IFERROR(VLOOKUP(G47, Lookups!B243:C276, 2, FALSE), 0), 0))) -> 0 | K47: =IF(J47="","",INDEX(Schedules!$B$5:$B$14,MATCH(J47,Schedules!$A$5:$A$14,0),)) ->  | R47: =IF(COUNTA(P47)=0,"", _xlfn.IFNA(K47 * (1 - VLOOKUP(TRIM(Q47), Schedules!$A$18:$B$23, 2, FALSE)), K47)) ->  | S47: =IF(COUNTA(P47)=0,"",IFERROR(IF(F47="Replace on Burnout", Calculations!Z34 * (1 - _xlfn.IFNA(VLOOKUP(TRIM(Q47), Schedules!$A$18:$B$23, 2, FALSE), 0)), IF(F47="Early Replacement", Calculations!Y34 * (1 - _xlfn.IFNA(VLOOKUP(TRIM(Q47), Schedules!$A$18:$B$23, 2, FALSE), 0)),0)),0)) ->  | T47: =IF(COUNTA(P47)=0,"",IF(D47="Exterior", 0,IF(F47="Early Replacement",Calculations!AC34 * (1 - _xlfn.IFNA(VLOOKUP(TRIM(Q47), Schedules!$A$18:$B$23, 2, FALSE), 0)),IF(F47="Replace on Burnout",Calculations!AD34 * (1 - _xlfn.IFNA(VLOOKUP(TRIM(Q47), Schedules!A48:B53, 2, FALSE), 0)),0)))) ->  | U47: =IF(COUNTA(P47)=0,"", IF(F47="Early Replacement",(Calculations!Y34*0.15),IF(F47="Replace on Burnout",(Calculations!Z34*0.15)))) -> 
H48: =IF(F48="Early Replacement", IFERROR(VLOOKUP(G48, Lookups!B71:D253, 2, FALSE), 0), IF(F48="Replace on Burnout", IFERROR(VLOOKUP(G48, Lookups!B71:D253, 3, FALSE), 0), IF(E48="User Defined", IFERROR(VLOOKUP(G48, Lookups!B244:C277, 2, FALSE), 0), 0))) -> 0 | K48: =IF(J48="","",INDEX(Schedules!$B$5:$B$14,MATCH(J48,Schedules!$A$5:$A$14,0),)) ->  | R48: =IF(COUNTA(P48)=0,"", _xlfn.IFNA(K48 * (1 - VLOOKUP(TRIM(Q48), Schedules!$A$18:$B$23, 2, FALSE)), K48)) ->  | S48: =IF(COUNTA(P48)=0,"",IFERROR(IF(F48="Replace on Burnout", Calculations!Z35 * (1 - _xlfn.IFNA(VLOOKUP(TRIM(Q48), Schedules!$A$18:$B$23, 2, FALSE), 0)), IF(F48="Early Replacement", Calculations!Y35 * (1 - _xlfn.IFNA(VLOOKUP(TRIM(Q48), Schedules!$A$18:$B$23, 2, FALSE), 0)),0)),0)) ->  | T48: =IF(COUNTA(P48)=0,"",IF(D48="Exterior", 0,IF(F48="Early Replacement",Calculations!AC35 * (1 - _xlfn.IFNA(VLOOKUP(TRIM(Q48), Schedules!$A$18:$B$23, 2, FALSE), 0)),IF(F48="Replace on Burnout",Calculations!AD35 * (1 - _xlfn.IFNA(VLOOKUP(TRIM(Q48), Schedules!A49:B54, 2, FALSE), 0)),0)))) ->  | U48: =IF(COUNTA(P48)=0,"", IF(F48="Early Replacement",(Calculations!Y35*0.15),IF(F48="Replace on Burnout",(Calculations!Z35*0.15)))) -> 
H49: =IF(F49="Early Replacement", IFERROR(VLOOKUP(G49, Lookups!B72:D254, 2, FALSE), 0), IF(F49="Replace on Burnout", IFERROR(VLOOKUP(G49, Lookups!B72:D254, 3, FALSE), 0), IF(E49="User Defined", IFERROR(VLOOKUP(G49, Lookups!B245:C278, 2, FALSE), 0), 0))) -> 0 | K49: =IF(J49="","",INDEX(Schedules!$B$5:$B$14,MATCH(J49,Schedules!$A$5:$A$14,0),)) ->  | R49: =IF(COUNTA(P49)=0,"", _xlfn.IFNA(K49 * (1 - VLOOKUP(TRIM(Q49), Schedules!$A$18:$B$23, 2, FALSE)), K49)) ->  | S49: =IF(COUNTA(P49)=0,"",IFERROR(IF(F49="Replace on Burnout", Calculations!Z36 * (1 - _xlfn.IFNA(VLOOKUP(TRIM(Q49), Schedules!$A$18:$B$23, 2, FALSE), 0)), IF(F49="Early Replacement", Calculations!Y36 * (1 - _xlfn.IFNA(VLOOKUP(TRIM(Q49), Schedules!$A$18:$B$23, 2, FALSE), 0)),0)),0)) ->  | T49: =IF(COUNTA(P49)=0,"",IF(D49="Exterior", 0,IF(F49="Early Replacement",Calculations!AC36 * (1 - _xlfn.IFNA(VLOOKUP(TRIM(Q49), Schedules!$A$18:$B$23, 2, FALSE), 0)),IF(F49="Replace on Burnout",Calculations!AD36 * (1 - _xlfn.IFNA(VLOOKUP(TRIM(Q49), Schedules!A50:B55, 2, FALSE), 0)),0)))) ->  | U49: =IF(COUNTA(P49)=0,"", IF(F49="Early Replacement",(Calculations!Y36*0.15),IF(F49="Replace on Burnout",(Calculations!Z36*0.15)))) -> 
H50: =IF(F50="Early Replacement", IFERROR(VLOOKUP(G50, Lookups!B73:D255, 2, FALSE), 0), IF(F50="Replace on Burnout", IFERROR(VLOOKUP(G50, Lookups!B73:D255, 3, FALSE), 0), IF(E50="User Defined", IFERROR(VLOOKUP(G50, Lookups!B246:C279, 2, FALSE), 0), 0))) -> 0 | K50: =IF(J50="","",INDEX(Schedules!$B$5:$B$14,MATCH(J50,Schedules!$A$5:$A$14,0),)) ->  | R50: =IF(COUNTA(P50)=0,"", _xlfn.IFNA(K50 * (1 - VLOOKUP(TRIM(Q50), Schedules!$A$18:$B$23, 2, FALSE)), K50)) ->  | S50: =IF(COUNTA(P50)=0,"",IFERROR(IF(F50="Replace on Burnout", Calculations!Z37 * (1 - _xlfn.IFNA(VLOOKUP(TRIM(Q50), Schedules!$A$18:$B$23, 2, FALSE), 0)), IF(F50="Early Replacement", Calculations!Y37 * (1 - _xlfn.IFNA(VLOOKUP(TRIM(Q50), Schedules!$A$18:$B$23, 2, FALSE), 0)),0)),0)) ->  | T50: =IF(COUNTA(P50)=0,"",IF(D50="Exterior", 0,IF(F50="Early Replacement",Calculations!AC37 * (1 - _xlfn.IFNA(VLOOKUP(TRIM(Q50), Schedules!$A$18:$B$23, 2, FALSE), 0)),IF(F50="Replace on Burnout",Calculations!AD37 * (1 - _xlfn.IFNA(VLOOKUP(TRIM(Q50), Schedules!A51:B56, 2, FALSE), 0)),0)))) ->  | U50: =IF(COUNTA(P50)=0,"", IF(F50="Early Replacement",(Calculations!Y37*0.15),IF(F50="Replace on Burnout",(Calculations!Z37*0.15)))) -> 
H51: =IF(F51="Early Replacement", IFERROR(VLOOKUP(G51, Lookups!B74:D256, 2, FALSE), 0), IF(F51="Replace on Burnout", IFERROR(VLOOKUP(G51, Lookups!B74:D256, 3, FALSE), 0), IF(E51="User Defined", IFERROR(VLOOKUP(G51, Lookups!B247:C280, 2, FALSE), 0), 0))) -> 0 | K51: =IF(J51="","",INDEX(Schedules!$B$5:$B$14,MATCH(J51,Schedules!$A$5:$A$14,0),)) ->  | R51: =IF(COUNTA(P51)=0,"", _xlfn.IFNA(K51 * (1 - VLOOKUP(TRIM(Q51), Schedules!$A$18:$B$23, 2, FALSE)), K51)) ->  | S51: =IF(COUNTA(P51)=0,"",IFERROR(IF(F51="Replace on Burnout", Calculations!Z38 * (1 - _xlfn.IFNA(VLOOKUP(TRIM(Q51), Schedules!$A$18:$B$23, 2, FALSE), 0)), IF(F51="Early Replacement", Calculations!Y38 * (1 - _xlfn.IFNA(VLOOKUP(TRIM(Q51), Schedules!$A$18:$B$23, 2, FALSE), 0)),0)),0)) ->  | T51: =IF(COUNTA(P51)=0,"",IF(D51="Exterior", 0,IF(F51="Early Replacement",Calculations!AC38 * (1 - _xlfn.IFNA(VLOOKUP(TRIM(Q51), Schedules!$A$18:$B$23, 2, FALSE), 0)),IF(F51="Replace on Burnout",Calculations!AD38 * (1 - _xlfn.IFNA(VLOOKUP(TRIM(Q51), Schedules!A52:B57, 2, FALSE), 0)),0)))) ->  | U51: =IF(COUNTA(P51)=0,"", IF(F51="Early Replacement",(Calculations!Y38*0.15),IF(F51="Replace on Burnout",(Calculations!Z38*0.15)))) -> 
H52: =IF(F52="Early Replacement", IFERROR(VLOOKUP(G52, Lookups!B75:D257, 2, FALSE), 0), IF(F52="Replace on Burnout", IFERROR(VLOOKUP(G52, Lookups!B75:D257, 3, FALSE), 0), IF(E52="User Defined", IFERROR(VLOOKUP(G52, Lookups!B248:C281, 2, FALSE), 0), 0))) -> 0 | K52: =IF(J52="","",INDEX(Schedules!$B$5:$B$14,MATCH(J52,Schedules!$A$5:$A$14,0),)) ->  | R52: =IF(COUNTA(P52)=0,"", _xlfn.IFNA(K52 * (1 - VLOOKUP(TRIM(Q52), Schedules!$A$18:$B$23, 2, FALSE)), K52)) ->  | S52: =IF(COUNTA(P52)=0,"",IFERROR(IF(F52="Replace on Burnout", Calculations!Z39 * (1 - _xlfn.IFNA(VLOOKUP(TRIM(Q52), Schedules!$A$18:$B$23, 2, FALSE), 0)), IF(F52="Early Replacement", Calculations!Y39 * (1 - _xlfn.IFNA(VLOOKUP(TRIM(Q52), Schedules!$A$18:$B$23, 2, FALSE), 0)),0)),0)) ->  | T52: =IF(COUNTA(P52)=0,"",IF(D52="Exterior", 0,IF(F52="Early Replacement",Calculations!AC39 * (1 - _xlfn.IFNA(VLOOKUP(TRIM(Q52), Schedules!$A$18:$B$23, 2, FALSE), 0)),IF(F52="Replace on Burnout",Calculations!AD39 * (1 - _xlfn.IFNA(VLOOKUP(TRIM(Q52), Schedules!A53:B58, 2, FALSE), 0)),0)))) ->  | U52: =IF(COUNTA(P52)=0,"", IF(F52="Early Replacement",(Calculations!Y39*0.15),IF(F52="Replace on Burnout",(Calculations!Z39*0.15)))) -> 
H53: =IF(F53="Early Replacement", IFERROR(VLOOKUP(G53, Lookups!B76:D258, 2, FALSE), 0), IF(F53="Replace on Burnout", IFERROR(VLOOKUP(G53, Lookups!B76:D258, 3, FALSE), 0), IF(E53="User Defined", IFERROR(VLOOKUP(G53, Lookups!B249:C282, 2, FALSE), 0), 0))) -> 0 | K53: =IF(J53="","",INDEX(Schedules!$B$5:$B$14,MATCH(J53,Schedules!$A$5:$A$14,0),)) ->  | R53: =IF(COUNTA(P53)=0,"", _xlfn.IFNA(K53 * (1 - VLOOKUP(TRIM(Q53), Schedules!$A$18:$B$23, 2, FALSE)), K53)) ->  | S53: =IF(COUNTA(P53)=0,"",IFERROR(IF(F53="Replace on Burnout", Calculations!Z40 * (1 - _xlfn.IFNA(VLOOKUP(TRIM(Q53), Schedules!$A$18:$B$23, 2, FALSE), 0)), IF(F53="Early Replacement", Calculations!Y40 * (1 - _xlfn.IFNA(VLOOKUP(TRIM(Q53), Schedules!$A$18:$B$23, 2, FALSE), 0)),0)),0)) ->  | T53: =IF(COUNTA(P53)=0,"",IF(D53="Exterior", 0,IF(F53="Early Replacement",Calculations!AC40 * (1 - _xlfn.IFNA(VLOOKUP(TRIM(Q53), Schedules!$A$18:$B$23, 2, FALSE), 0)),IF(F53="Replace on Burnout",Calculations!AD40 * (1 - _xlfn.IFNA(VLOOKUP(TRIM(Q53), Schedules!A54:B59, 2, FALSE), 0)),0)))) ->  | U53: =IF(COUNTA(P53)=0,"", IF(F53="Early Replacement",(Calculations!Y40*0.15),IF(F53="Replace on Burnout",(Calculations!Z40*0.15)))) -> 
H54: =IF(F54="Early Replacement", IFERROR(VLOOKUP(G54, Lookups!B77:D259, 2, FALSE), 0), IF(F54="Replace on Burnout", IFERROR(VLOOKUP(G54, Lookups!B77:D259, 3, FALSE), 0), IF(E54="User Defined", IFERROR(VLOOKUP(G54, Lookups!B250:C283, 2, FALSE), 0), 0))) -> 0 | K54: =IF(J54="","",INDEX(Schedules!$B$5:$B$14,MATCH(J54,Schedules!$A$5:$A$14,0),)) ->  | R54: =IF(COUNTA(P54)=0,"", _xlfn.IFNA(K54 * (1 - VLOOKUP(TRIM(Q54), Schedules!$A$18:$B$23, 2, FALSE)), K54)) ->  | S54: =IF(COUNTA(P54)=0,"",IFERROR(IF(F54="Replace on Burnout", Calculations!Z41 * (1 - _xlfn.IFNA(VLOOKUP(TRIM(Q54), Schedules!$A$18:$B$23, 2, FALSE), 0)), IF(F54="Early Replacement", Calculations!Y41 * (1 - _xlfn.IFNA(VLOOKUP(TRIM(Q54), Schedules!$A$18:$B$23, 2, FALSE), 0)),0)),0)) ->  | T54: =IF(COUNTA(P54)=0,"",IF(D54="Exterior", 0,IF(F54="Early Replacement",Calculations!AC41 * (1 - _xlfn.IFNA(VLOOKUP(TRIM(Q54), Schedules!$A$18:$B$23, 2, FALSE), 0)),IF(F54="Replace on Burnout",Calculations!AD41 * (1 - _xlfn.IFNA(VLOOKUP(TRIM(Q54), Schedules!A55:B60, 2, FALSE), 0)),0)))) ->  | U54: =IF(COUNTA(P54)=0,"", IF(F54="Early Replacement",(Calculations!Y41*0.15),IF(F54="Replace on Burnout",(Calculations!Z41*0.15)))) -> 
H55: =IF(F55="Early Replacement", IFERROR(VLOOKUP(G55, Lookups!B78:D260, 2, FALSE), 0), IF(F55="Replace on Burnout", IFERROR(VLOOKUP(G55, Lookups!B78:D260, 3, FALSE), 0), IF(E55="User Defined", IFERROR(VLOOKUP(G55, Lookups!B251:C284, 2, FALSE), 0), 0))) -> 0 | K55: =IF(J55="","",INDEX(Schedules!$B$5:$B$14,MATCH(J55,Schedules!$A$5:$A$14,0),)) ->  | R55: =IF(COUNTA(P55)=0,"", _xlfn.IFNA(K55 * (1 - VLOOKUP(TRIM(Q55), Schedules!$A$18:$B$23, 2, FALSE)), K55)) ->  | S55: =IF(COUNTA(P55)=0,"",IFERROR(IF(F55="Replace on Burnout", Calculations!Z42 * (1 - _xlfn.IFNA(VLOOKUP(TRIM(Q55), Schedules!$A$18:$B$23, 2, FALSE), 0)), IF(F55="Early Replacement", Calculations!Y42 * (1 - _xlfn.IFNA(VLOOKUP(TRIM(Q55), Schedules!$A$18:$B$23, 2, FALSE), 0)),0)),0)) ->  | T55: =IF(COUNTA(P55)=0,"",IF(D55="Exterior", 0,IF(F55="Early Replacement",Calculations!AC42 * (1 - _xlfn.IFNA(VLOOKUP(TRIM(Q55), Schedules!$A$18:$B$23, 2, FALSE), 0)),IF(F55="Replace on Burnout",Calculations!AD42 * (1 - _xlfn.IFNA(VLOOKUP(TRIM(Q55), Schedules!A56:B61, 2, FALSE), 0)),0)))) ->  | U55: =IF(COUNTA(P55)=0,"", IF(F55="Early Replacement",(Calculations!Y42*0.15),IF(F55="Replace on Burnout",(Calculations!Z42*0.15)))) -> 
H56: =IF(F56="Early Replacement", IFERROR(VLOOKUP(G56, Lookups!B79:D261, 2, FALSE), 0), IF(F56="Replace on Burnout", IFERROR(VLOOKUP(G56, Lookups!B79:D261, 3, FALSE), 0), IF(E56="User Defined", IFERROR(VLOOKUP(G56, Lookups!B252:C285, 2, FALSE), 0), 0))) -> 0 | K56: =IF(J56="","",INDEX(Schedules!$B$5:$B$14,MATCH(J56,Schedules!$A$5:$A$14,0),)) ->  | R56: =IF(COUNTA(P56)=0,"", _xlfn.IFNA(K56 * (1 - VLOOKUP(TRIM(Q56), Schedules!$A$18:$B$23, 2, FALSE)), K56)) ->  | S56: =IF(COUNTA(P56)=0,"",IFERROR(IF(F56="Replace on Burnout", Calculations!Z43 * (1 - _xlfn.IFNA(VLOOKUP(TRIM(Q56), Schedules!$A$18:$B$23, 2, FALSE), 0)), IF(F56="Early Replacement", Calculations!Y43 * (1 - _xlfn.IFNA(VLOOKUP(TRIM(Q56), Schedules!$A$18:$B$23, 2, FALSE), 0)),0)),0)) ->  | T56: =IF(COUNTA(P56)=0,"",IF(D56="Exterior", 0,IF(F56="Early Replacement",Calculations!AC43 * (1 - _xlfn.IFNA(VLOOKUP(TRIM(Q56), Schedules!$A$18:$B$23, 2, FALSE), 0)),IF(F56="Replace on Burnout",Calculations!AD43 * (1 - _xlfn.IFNA(VLOOKUP(TRIM(Q56), Schedules!A57:B62, 2, FALSE), 0)),0)))) ->  | U56: =IF(COUNTA(P56)=0,"", IF(F56="Early Replacement",(Calculations!Y43*0.15),IF(F56="Replace on Burnout",(Calculations!Z43*0.15)))) -> 
H57: =IF(F57="Early Replacement", IFERROR(VLOOKUP(G57, Lookups!B80:D262, 2, FALSE), 0), IF(F57="Replace on Burnout", IFERROR(VLOOKUP(G57, Lookups!B80:D262, 3, FALSE), 0), IF(E57="User Defined", IFERROR(VLOOKUP(G57, Lookups!B253:C286, 2, FALSE), 0), 0))) -> 0 | K57: =IF(J57="","",INDEX(Schedules!$B$5:$B$14,MATCH(J57,Schedules!$A$5:$A$14,0),)) ->  | R57: =IF(COUNTA(P57)=0,"", _xlfn.IFNA(K57 * (1 - VLOOKUP(TRIM(Q57), Schedules!$A$18:$B$23, 2, FALSE)), K57)) ->  | S57: =IF(COUNTA(P57)=0,"",IFERROR(IF(F57="Replace on Burnout", Calculations!Z44 * (1 - _xlfn.IFNA(VLOOKUP(TRIM(Q57), Schedules!$A$18:$B$23, 2, FALSE), 0)), IF(F57="Early Replacement", Calculations!Y44 * (1 - _xlfn.IFNA(VLOOKUP(TRIM(Q57), Schedules!$A$18:$B$23, 2, FALSE), 0)),0)),0)) ->  | T57: =IF(COUNTA(P57)=0,"",IF(D57="Exterior", 0,IF(F57="Early Replacement",Calculations!AC44 * (1 - _xlfn.IFNA(VLOOKUP(TRIM(Q57), Schedules!$A$18:$B$23, 2, FALSE), 0)),IF(F57="Replace on Burnout",Calculations!AD44 * (1 - _xlfn.IFNA(VLOOKUP(TRIM(Q57), Schedules!A58:B63, 2, FALSE), 0)),0)))) ->  | U57: =IF(COUNTA(P57)=0,"", IF(F57="Early Replacement",(Calculations!Y44*0.15),IF(F57="Replace on Burnout",(Calculations!Z44*0.15)))) -> 
H58: =IF(F58="Early Replacement", IFERROR(VLOOKUP(G58, Lookups!B81:D263, 2, FALSE), 0), IF(F58="Replace on Burnout", IFERROR(VLOOKUP(G58, Lookups!B81:D263, 3, FALSE), 0), IF(E58="User Defined", IFERROR(VLOOKUP(G58, Lookups!B254:C287, 2, FALSE), 0), 0))) -> 0 | K58: =IF(J58="","",INDEX(Schedules!$B$5:$B$14,MATCH(J58,Schedules!$A$5:$A$14,0),)) ->  | R58: =IF(COUNTA(P58)=0,"", _xlfn.IFNA(K58 * (1 - VLOOKUP(TRIM(Q58), Schedules!$A$18:$B$23, 2, FALSE)), K58)) ->  | S58: =IF(COUNTA(P58)=0,"",IFERROR(IF(F58="Replace on Burnout", Calculations!Z45 * (1 - _xlfn.IFNA(VLOOKUP(TRIM(Q58), Schedules!$A$18:$B$23, 2, FALSE), 0)), IF(F58="Early Replacement", Calculations!Y45 * (1 - _xlfn.IFNA(VLOOKUP(TRIM(Q58), Schedules!$A$18:$B$23, 2, FALSE), 0)),0)),0)) ->  | T58: =IF(COUNTA(P58)=0,"",IF(D58="Exterior", 0,IF(F58="Early Replacement",Calculations!AC45 * (1 - _xlfn.IFNA(VLOOKUP(TRIM(Q58), Schedules!$A$18:$B$23, 2, FALSE), 0)),IF(F58="Replace on Burnout",Calculations!AD45 * (1 - _xlfn.IFNA(VLOOKUP(TRIM(Q58), Schedules!A59:B64, 2, FALSE), 0)),0)))) ->  | U58: =IF(COUNTA(P58)=0,"", IF(F58="Early Replacement",(Calculations!Y45*0.15),IF(F58="Replace on Burnout",(Calculations!Z45*0.15)))) -> 
H59: =IF(F59="Early Replacement", IFERROR(VLOOKUP(G59, Lookups!B82:D264, 2, FALSE), 0), IF(F59="Replace on Burnout", IFERROR(VLOOKUP(G59, Lookups!B82:D264, 3, FALSE), 0), IF(E59="User Defined", IFERROR(VLOOKUP(G59, Lookups!B255:C288, 2, FALSE), 0), 0))) -> 0 | K59: =IF(J59="","",INDEX(Schedules!$B$5:$B$14,MATCH(J59,Schedules!$A$5:$A$14,0),)) ->  | R59: =IF(COUNTA(P59)=0,"", _xlfn.IFNA(K59 * (1 - VLOOKUP(TRIM(Q59), Schedules!$A$18:$B$23, 2, FALSE)), K59)) ->  | S59: =IF(COUNTA(P59)=0,"",IFERROR(IF(F59="Replace on Burnout", Calculations!Z46 * (1 - _xlfn.IFNA(VLOOKUP(TRIM(Q59), Schedules!$A$18:$B$23, 2, FALSE), 0)), IF(F59="Early Replacement", Calculations!Y46 * (1 - _xlfn.IFNA(VLOOKUP(TRIM(Q59), Schedules!$A$18:$B$23, 2, FALSE), 0)),0)),0)) ->  | T59: =IF(COUNTA(P59)=0,"",IF(D59="Exterior", 0,IF(F59="Early Replacement",Calculations!AC46 * (1 - _xlfn.IFNA(VLOOKUP(TRIM(Q59), Schedules!$A$18:$B$23, 2, FALSE), 0)),IF(F59="Replace on Burnout",Calculations!AD46 * (1 - _xlfn.IFNA(VLOOKUP(TRIM(Q59), Schedules!A60:B65, 2, FALSE), 0)),0)))) ->  | U59: =IF(COUNTA(P59)=0,"", IF(F59="Early Replacement",(Calculations!Y46*0.15),IF(F59="Replace on Burnout",(Calculations!Z46*0.15)))) -> 
H60: =IF(F60="Early Replacement", IFERROR(VLOOKUP(G60, Lookups!B83:D265, 2, FALSE), 0), IF(F60="Replace on Burnout", IFERROR(VLOOKUP(G60, Lookups!B83:D265, 3, FALSE), 0), IF(E60="User Defined", IFERROR(VLOOKUP(G60, Lookups!B256:C289, 2, FALSE), 0), 0))) -> 0 | K60: =IF(J60="","",INDEX(Schedules!$B$5:$B$14,MATCH(J60,Schedules!$A$5:$A$14,0),)) ->  | R60: =IF(COUNTA(P60)=0,"", _xlfn.IFNA(K60 * (1 - VLOOKUP(TRIM(Q60), Schedules!$A$18:$B$23, 2, FALSE)), K60)) ->  | S60: =IF(COUNTA(P60)=0,"",IFERROR(IF(F60="Replace on Burnout", Calculations!Z47 * (1 - _xlfn.IFNA(VLOOKUP(TRIM(Q60), Schedules!$A$18:$B$23, 2, FALSE), 0)), IF(F60="Early Replacement", Calculations!Y47 * (1 - _xlfn.IFNA(VLOOKUP(TRIM(Q60), Schedules!$A$18:$B$23, 2, FALSE), 0)),0)),0)) ->  | T60: =IF(COUNTA(P60)=0,"",IF(D60="Exterior", 0,IF(F60="Early Replacement",Calculations!AC47 * (1 - _xlfn.IFNA(VLOOKUP(TRIM(Q60), Schedules!$A$18:$B$23, 2, FALSE), 0)),IF(F60="Replace on Burnout",Calculations!AD47 * (1 - _xlfn.IFNA(VLOOKUP(TRIM(Q60), Schedules!A61:B66, 2, FALSE), 0)),0)))) ->  | U60: =IF(COUNTA(P60)=0,"", IF(F60="Early Replacement",(Calculations!Y47*0.15),IF(F60="Replace on Burnout",(Calculations!Z47*0.15)))) -> 
H61: =IF(F61="Early Replacement", IFERROR(VLOOKUP(G61, Lookups!B84:D266, 2, FALSE), 0), IF(F61="Replace on Burnout", IFERROR(VLOOKUP(G61, Lookups!B84:D266, 3, FALSE), 0), IF(E61="User Defined", IFERROR(VLOOKUP(G61, Lookups!B257:C290, 2, FALSE), 0), 0))) -> 0 | K61: =IF(J61="","",INDEX(Schedules!$B$5:$B$14,MATCH(J61,Schedules!$A$5:$A$14,0),)) ->  | R61: =IF(COUNTA(P61)=0,"", _xlfn.IFNA(K61 * (1 - VLOOKUP(TRIM(Q61), Schedules!$A$18:$B$23, 2, FALSE)), K61)) ->  | S61: =IF(COUNTA(P61)=0,"",IFERROR(IF(F61="Replace on Burnout", Calculations!Z48 * (1 - _xlfn.IFNA(VLOOKUP(TRIM(Q61), Schedules!$A$18:$B$23, 2, FALSE), 0)), IF(F61="Early Replacement", Calculations!Y48 * (1 - _xlfn.IFNA(VLOOKUP(TRIM(Q61), Schedules!$A$18:$B$23, 2, FALSE), 0)),0)),0)) ->  | T61: =IF(COUNTA(P61)=0,"",IF(D61="Exterior", 0,IF(F61="Early Replacement",Calculations!AC48 * (1 - _xlfn.IFNA(VLOOKUP(TRIM(Q61), Schedules!$A$18:$B$23, 2, FALSE), 0)),IF(F61="Replace on Burnout",Calculations!AD48 * (1 - _xlfn.IFNA(VLOOKUP(TRIM(Q61), Schedules!A62:B67, 2, FALSE), 0)),0)))) ->  | U61: =IF(COUNTA(P61)=0,"", IF(F61="Early Replacement",(Calculations!Y48*0.15),IF(F61="Replace on Burnout",(Calculations!Z48*0.15)))) -> 
H62: =IF(F62="Early Replacement", IFERROR(VLOOKUP(G62, Lookups!B85:D267, 2, FALSE), 0), IF(F62="Replace on Burnout", IFERROR(VLOOKUP(G62, Lookups!B85:D267, 3, FALSE), 0), IF(E62="User Defined", IFERROR(VLOOKUP(G62, Lookups!B258:C291, 2, FALSE), 0), 0))) -> 0 | K62: =IF(J62="","",INDEX(Schedules!$B$5:$B$14,MATCH(J62,Schedules!$A$5:$A$14,0),)) ->  | R62: =IF(COUNTA(P62)=0,"", _xlfn.IFNA(K62 * (1 - VLOOKUP(TRIM(Q62), Schedules!$A$18:$B$23, 2, FALSE)), K62)) ->  | S62: =IF(COUNTA(P62)=0,"",IFERROR(IF(F62="Replace on Burnout", Calculations!Z49 * (1 - _xlfn.IFNA(VLOOKUP(TRIM(Q62), Schedules!$A$18:$B$23, 2, FALSE), 0)), IF(F62="Early Replacement", Calculations!Y49 * (1 - _xlfn.IFNA(VLOOKUP(TRIM(Q62), Schedules!$A$18:$B$23, 2, FALSE), 0)),0)),0)) ->  | T62: =IF(COUNTA(P62)=0,"",IF(D62="Exterior", 0,IF(F62="Early Replacement",Calculations!AC49 * (1 - _xlfn.IFNA(VLOOKUP(TRIM(Q62), Schedules!$A$18:$B$23, 2, FALSE), 0)),IF(F62="Replace on Burnout",Calculations!AD49 * (1 - _xlfn.IFNA(VLOOKUP(TRIM(Q62), Schedules!A63:B68, 2, FALSE), 0)),0)))) ->  | U62: =IF(COUNTA(P62)=0,"", IF(F62="Early Replacement",(Calculations!Y49*0.15),IF(F62="Replace on Burnout",(Calculations!Z49*0.15)))) -> 
H63: =IF(F63="Early Replacement", IFERROR(VLOOKUP(G63, Lookups!B86:D268, 2, FALSE), 0), IF(F63="Replace on Burnout", IFERROR(VLOOKUP(G63, Lookups!B86:D268, 3, FALSE), 0), IF(E63="User Defined", IFERROR(VLOOKUP(G63, Lookups!B259:C292, 2, FALSE), 0), 0))) -> 0 | K63: =IF(J63="","",INDEX(Schedules!$B$5:$B$14,MATCH(J63,Schedules!$A$5:$A$14,0),)) ->  | R63: =IF(COUNTA(P63)=0,"", _xlfn.IFNA(K63 * (1 - VLOOKUP(TRIM(Q63), Schedules!$A$18:$B$23, 2, FALSE)), K63)) ->  | S63: =IF(COUNTA(P63)=0,"",IFERROR(IF(F63="Replace on Burnout", Calculations!Z50 * (1 - _xlfn.IFNA(VLOOKUP(TRIM(Q63), Schedules!$A$18:$B$23, 2, FALSE), 0)), IF(F63="Early Replacement", Calculations!Y50 * (1 - _xlfn.IFNA(VLOOKUP(TRIM(Q63), Schedules!$A$18:$B$23, 2, FALSE), 0)),0)),0)) ->  | T63: =IF(COUNTA(P63)=0,"",IF(D63="Exterior", 0,IF(F63="Early Replacement",Calculations!AC50 * (1 - _xlfn.IFNA(VLOOKUP(TRIM(Q63), Schedules!$A$18:$B$23, 2, FALSE), 0)),IF(F63="Replace on Burnout",Calculations!AD50 * (1 - _xlfn.IFNA(VLOOKUP(TRIM(Q63), Schedules!A64:B69, 2, FALSE), 0)),0)))) ->  | U63: =IF(COUNTA(P63)=0,"", IF(F63="Early Replacement",(Calculations!Y50*0.15),IF(F63="Replace on Burnout",(Calculations!Z50*0.15)))) -> 
C64: NOTE: Rebate is $.15/kWh and $250 per kW reduction. Rebate will not exceed 50% of the installed job cost. Rebate will not exceed 100% of installed cost for multi-family, schools, non-profit, and governmental agencies.
C65: Installed Job Cost:
G66: Contractor Name: | N66: Phone:
C67: Estimated Annual kWh Savings: | D67: =SUM(S17:S63) -> 0
C68: Estimated Annual $ Savings: | D68: =D67*N10 -> 0
C69: Interior Lighting Project Cost | D69: =D65*(D71/SUM(S17:S63)) -> 
C70: Interior kW Reduction | D70: =SUM(T17:T63) -> 0
C71: Interior Lighting kWh Savings | D71: =SUMIF(D17:D63, "Interior",S17:S63) -> 0
C72: Exterior Lighting Project Cost | D72: =D65*(D73/SUM(S17:S63)) -> 
C73: Exterior kWh Savings | D73: =SUMIF(D17:D63, "Exterior",S17:S63) -> 0
C74: Estimated kWh Rebate: | D74: =SUM(U17:U63) -> 0
C75: Estimated kW Reduction: | D75: =SUM(T17:T63) -> 0
C76: Estimated kW Reduction Rebate: | D76: =D75*250 -> 0
C77: Estimated Total Rebate: | D77: =MIN(D74+D76,D65*N8) -> 0
C78: Estimated Payback (Yrs): | D78: =(D65-D77)/D68 -> 
C79: Weighted Ave. Measure Life: | D79: =SUM(Calculations!AH4:AH38) -> 0
C80: Total Est. kW Demand Reduction: | D80: =SUM(T17:T63) -> 0
C379: Fluorescent
C380: Incandescent
C381: HID
C382: LED
C383: Other
C384: Metal Halide
C385: Mercury Vapor
C386: Induction

Sheet Calculations (hidden)
A3: ='Project Details'!C16 -> Fixture Location | B3: ='Project Details'!E16 -> Fixture Type Before Retrofit | C3: ='Project Details'!G16 -> Fixture Before Retrofit | D3: ='Project Details'!H16 -> Baseline Wattage Per Fixture Before Retrofit | E3: ='Project Details'!I16 -> # Fixtures Before Retrofit | H3: ='Project Details'!K16 -> Annual Hours of Operation Before Retrofit | I3: Annual kWh Before Retrofit | J3: ='Project Details'!L16 -> Fixture Type After Retrofit | K3: ='Project Details'!M16 -> Fixture After Retrofit | L3: ='Project Details'!O16 -> Watts Per Fixture After Retrofit | M3: ='Project Details'!P16 -> # Fixtures After Retrofit | P3: ='Project Details'!R16 -> Annual Hours of Operation After Retrofit | Q3: Annual kWh After Retrofit | V3: Total Rebate | W3: unadjusted kWh Reduction | X3: Interactive Effects | Y3: adjusted Early Replacement kWh Reduction | Z3: adjusted ROB kWh Reduction | AA3: Coincident Demand Factor | AB3: Interactive Effects | AC3: Early Replacement kW Demand Reduction | AD3: ROB kWDemand Reduction | AE3: Measure Life | AF3: Wattage Reduction | AG3: % of Total Watt Reduction | AH3: Weighted life
A4: ='Project Details'!C17 -> 0 | B4: ='Project Details'!E17 -> 0 | C4: ='Project Details'!G17 -> 0 | D4: ='Project Details'!H17 -> 0 | E4: ='Project Details'!I17 -> 0 | H4: ='Project Details'!K17 ->  | I4: =IF(ISERROR(D4*E4*H4/1000),0,D4*E4*H4/1000) -> 0 | J4: ='Project Details'!L17 -> 0 | K4: ='Project Details'!M17 -> 0 | L4: ='Project Details'!O17 -> 0 | M4: ='Project Details'!P17 -> 0 | P4: ='Project Details'!R17 ->  | Q4: =IF(ISERROR(L4*M4*P4/1000),0,L4*M4*P4/1000) -> 0 | V4: =IF(ISERROR(Y4*0.2),0,Y4*0.15) -> 0 | W4: =IF(ISERROR(I4-Q4),0,I4-Q4) -> 0 | X4: =IF(ISERROR(VLOOKUP('Project Details'!$L$13,CDF_IE,3,FALSE)),0,VLOOKUP('Project Details'!$L$13,CDF_IE,3,FALSE)) -> 0 | Y4: =IF(ISERROR(W4*X4),0,W4*X4) -> 0 | Z4: =Y4*0.5 -> 0 | AA4: =IF(ISERROR(VLOOKUP('Project Details'!$L$13,CDF_IE,2,FALSE)),0,VLOOKUP('Project Details'!$L$13,CDF_IE,2,FALSE)) -> 0 | AB4: =IF(ISERROR(VLOOKUP('Project Details'!$L$13,CDF_IE,4,FALSE)),0,VLOOKUP('Project Details'!$L$13,CDF_IE,4,FALSE)) -> 0 | AC4: =IF(ISERROR((AF4/1000)*AA4*AB4),0,(AF4/1000)*AA4*AB4) -> 0 | AD4: =AC4*0.5 -> 0 | AE4: =IF(IF(ISERROR(VLOOKUP(J4,FIXTURE_TYPE,2,FALSE)),0,VLOOKUP(J4,FIXTURE_TYPE,2,FALSE))>15,15,IF(ISERROR(VLOOKUP(J4,FIXTURE_TYPE,2,FALSE)),0,VLOOKUP(J4,FIXTURE_TYPE,2,FALSE))) -> 0 | AF4: =IF(ISERROR(IF(S4="Lamp",(D4*G4)-(L4*O4),(D4*E4)-(L4*M4))),0,IF(S4="Lamp",(D4*G4)-(L4*O4),(D4*E4)-(L4*M4))) -> 0 | AG4: =IF(ISERROR(AF4/SUM($AF$4:$AF$38)),0,AF4/SUM($AF$4:$AF$38)) -> 0 | AH4: =IF(ISERROR(AE4*AG4),0,AE4*AG4) -> 0
A5: ='Project Details'!C18 -> 0 | B5: ='Project Details'!E18 -> 0 | C5: ='Project Details'!G18 -> 0 | D5: ='Project Details'!H18 -> 0 | E5: ='Project Details'!I18 -> 0 | H5: ='Project Details'!K18 ->  | I5: =IF(ISERROR(D5*E5*H5/1000),0,D5*E5*H5/1000) -> 0 | J5: ='Project Details'!L18 -> 0 | K5: ='Project Details'!M18 -> 0 | L5: ='Project Details'!O18 -> 0 | M5: ='Project Details'!P18 -> 0 | P5: ='Project Details'!R18 ->  | Q5: =IF(ISERROR(L5*M5*P5/1000),0,L5*M5*P5/1000) -> 0 | V5: =IF(ISERROR(Y5*0.2),0,Y5*0.15) -> 0 | W5: =IF(ISERROR(I5-Q5),0,I5-Q5) -> 0 | X5: =IF(ISERROR(VLOOKUP('Project Details'!$L$13,CDF_IE,3,FALSE)),0,VLOOKUP('Project Details'!$L$13,CDF_IE,3,FALSE)) -> 0 | Y5: 0 | Z5: =Y5*0.5 -> 0 | AA5: =IF(ISERROR(VLOOKUP('Project Details'!$L$13,CDF_IE,2,FALSE)),0,VLOOKUP('Project Details'!$L$13,CDF_IE,2,FALSE)) -> 0 | AB5: =IF(ISERROR(VLOOKUP('Project Details'!$L$13,CDF_IE,4,FALSE)),0,VLOOKUP('Project Details'!$L$13,CDF_IE,4,FALSE)) -> 0 | AC5: 0 | AD5: =AC5*0.5 -> 0 | AE5: 0 | AF5: 0 | AG5: =IF(ISERROR(AF5/SUM($AF$4:$AF$38)),0,AF5/SUM($AF$4:$AF$38)) -> 0 | AH5: 0
A6: ='Project Details'!C19 -> 0 | B6: ='Project Details'!E19 -> 0 | C6: ='Project Details'!G19 -> 0 | D6: ='Project Details'!H19 -> 0 | E6: ='Project Details'!I19 -> 0 | H6: ='Project Details'!K19 ->  | I6: 0 | J6: ='Project Details'!L19 -> 0 | K6: ='Project Details'!M19 -> 0 | L6: ='Project Details'!O19 -> 0 | M6: ='Project Details'!P19 -> 0 | P6: ='Project Details'!R19 ->  | Q6: 0 | V6: 0 | W6: 0 | X6: =IF(ISERROR(VLOOKUP('Project Details'!$L$13,CDF_IE,3,FALSE)),0,VLOOKUP('Project Details'!$L$13,CDF_IE,3,FALSE)) -> 0 | Y6: 0 | Z6: 0 | AA6: =IF(ISERROR(VLOOKUP('Project Details'!$L$13,CDF_IE,2,FALSE)),0,VLOOKUP('Project Details'!$L$13,CDF_IE,2,FALSE)) -> 0 | AB6: =IF(ISERROR(VLOOKUP('Project Details'!$L$13,CDF_IE,4,FALSE)),0,VLOOKUP('Project Details'!$L$13,CDF_IE,4,FALSE)) -> 0 | AC6: 0 | AD6: 0 | AE6: 0 | AF6: 0 | AG6: 0 | AH6: 0
A7: ='Project Details'!C20 -> 0 | B7: ='Project Details'!E20 -> 0 | C7: ='Project Details'!G20 -> 0 | D7: ='Project Details'!H20 -> 0 | E7: ='Project Details'!I20 -> 0 | H7: ='Project Details'!K20 ->  | I7: 0 | J7: ='Project Details'!L20 -> 0 | K7: ='Project Details'!M20 -> 0 | L7: ='Project Details'!O20 -> 0 | M7: ='Project Details'!P20 -> 0 | P7: ='Project Details'!R20 ->  | Q7: 0 | V7: 0 | W7: 0 | X7: =IF(ISERROR(VLOOKUP('Project Details'!$L$13,CDF_IE,3,FALSE)),0,VLOOKUP('Project Details'!$L$13,CDF_IE,3,FALSE)) -> 0 | Y7: 0 | Z7: 0 | AA7: =IF(ISERROR(VLOOKUP('Project Details'!$L$13,CDF_IE,2,FALSE)),0,VLOOKUP('Project Details'!$L$13,CDF_IE,2,FALSE)) -> 0 | AB7: =IF(ISERROR(VLOOKUP('Project Details'!$L$13,CDF_IE,4,FALSE)),0,VLOOKUP('Project Details'!$L$13,CDF_IE,4,FALSE)) -> 0 | AC7: 0 | AD7: 0 | AE7: 0 | AF7: 0 | AG7: 0 | AH7: 0
A8: ='Project Details'!C21 -> 0 | B8: ='Project Details'!E21 -> 0 | C8: ='Project Details'!G21 -> 0 | D8: ='Project Details'!H21 -> 0 | E8: ='Project Details'!I21 -> 0 | H8: ='Project Details'!K21 ->  | I8: 0 | J8: ='Project Details'!L21 -> 0 | K8: ='Project Details'!M21 -> 0 | L8: ='Project Details'!O21 -> 0 | M8: ='Project Details'!P21 -> 0 | P8: ='Project Details'!R21 ->  | Q8: 0 | V8: 0 | W8: 0 | X8: =IF(ISERROR(VLOOKUP('Project Details'!$L$13,CDF_IE,3,FALSE)),0,VLOOKUP('Project Details'!$L$13,CDF_IE,3,FALSE)) -> 0 | Y8: 0 | Z8: 0 | AA8: =IF(ISERROR(VLOOKUP('Project Details'!$L$13,CDF_IE,2,FALSE)),0,VLOOKUP('Project Details'!$L$13,CDF_IE,2,FALSE)) -> 0 | AB8: =IF(ISERROR(VLOOKUP('Project Details'!$L$13,CDF_IE,4,FALSE)),0,VLOOKUP('Project Details'!$L$13,CDF_IE,4,FALSE)) -> 0 | AC8: 0 | AD8: 0 | AE8: 0 | AF8: 0 | AG8: 0 | AH8: 0
A9: ='Project Details'!C22 -> 0 | B9: ='Project Details'!E22 -> 0 | C9: ='Project Details'!G22 -> 0 | D9: ='Project Details'!H22 -> 0 | E9: ='Project Details'!I22 -> 0 | H9: ='Project Details'!K22 ->  | I9: 0 | J9: ='Project Details'!L22 -> 0 | K9: ='Project Details'!M22 -> 0 | L9: ='Project Details'!O22 -> 0 | M9: ='Project Details'!P22 -> 0 | P9: ='Project Details'!R22 ->  | Q9: 0 | V9: 0 | W9: 0 | X9: =IF(ISERROR(VLOOKUP('Project Details'!$L$13,CDF_IE,3,FALSE)),0,VLOOKUP('Project Details'!$L$13,CDF_IE,3,FALSE)) -> 0 | Y9: 0 | Z9: 0 | AA9: =IF(ISERROR(VLOOKUP('Project Details'!$L$13,CDF_IE,2,FALSE)),0,VLOOKUP('Project Details'!$L$13,CDF_IE,2,FALSE)) -> 0 | AB9: =IF(ISERROR(VLOOKUP('Project Details'!$L$13,CDF_IE,4,FALSE)),0,VLOOKUP('Project Details'!$L$13,CDF_IE,4,FALSE)) -> 0 | AC9: 0 | AD9: 0 | AE9: 0 | AF9: 0 | AG9: 0 | AH9: 0
A10: ='Project Details'!C23 -> 0 | B10: ='Project Details'!E23 -> 0 | C10: ='Project Details'!G23 -> 0 | D10: ='Project Details'!H23 -> 0 | E10: ='Project Details'!I23 -> 0 | H10: ='Project Details'!K23 ->  | I10: 0 | J10: ='Project Details'!L23 -> 0 | K10: ='Project Details'!M23 -> 0 | L10: ='Project Details'!O23 -> 0 | M10: ='Project Details'!P23 -> 0 | P10: ='Project Details'!R23 ->  | Q10: 0 | V10: 0 | W10: 0 | X10: =IF(ISERROR(VLOOKUP('Project Details'!$L$13,CDF_IE,3,FALSE)),0,VLOOKUP('Project Details'!$L$13,CDF_IE,3,FALSE)) -> 0 | Y10: 0 | Z10: 0 | AA10: =IF(ISERROR(VLOOKUP('Project Details'!$L$13,CDF_IE,2,FALSE)),0,VLOOKUP('Project Details'!$L$13,CDF_IE,2,FALSE)) -> 0 | AB10: =IF(ISERROR(VLOOKUP('Project Details'!$L$13,CDF_IE,4,FALSE)),0,VLOOKUP('Project Details'!$L$13,CDF_IE,4,FALSE)) -> 0 | AC10: 0 | AD10: 0 | AE10: 0 | AF10: 0 | AG10: 0 | AH10: 0
A11: ='Project Details'!C24 -> 0 | B11: ='Project Details'!E24 -> 0 | C11: ='Project Details'!G24 -> 0 | D11: ='Project Details'!H24 -> 0 | E11: ='Project Details'!I24 -> 0 | H11: ='Project Details'!K24 ->  | I11: 0 | J11: ='Project Details'!L24 -> 0 | K11: ='Project Details'!M24 -> 0 | L11: ='Project Details'!O24 -> 0 | M11: ='Project Details'!P24 -> 0 | P11: ='Project Details'!R24 ->  | Q11: 0 | V11: 0 | W11: 0 | X11: =IF(ISERROR(VLOOKUP('Project Details'!$L$13,CDF_IE,3,FALSE)),0,VLOOKUP('Project Details'!$L$13,CDF_IE,3,FALSE)) -> 0 | Y11: 0 | Z11: 0 | AA11: =IF(ISERROR(VLOOKUP('Project Details'!$L$13,CDF_IE,2,FALSE)),0,VLOOKUP('Project Details'!$L$13,CDF_IE,2,FALSE)) -> 0 | AB11: =IF(ISERROR(VLOOKUP('Project Details'!$L$13,CDF_IE,4,FALSE)),0,VLOOKUP('Project Details'!$L$13,CDF_IE,4,FALSE)) -> 0 | AC11: 0 | AD11: 0 | AE11: 0 | AF11: 0 | AG11: 0 | AH11: 0
A12: ='Project Details'!C25 -> 0 | B12: ='Project Details'!E25 -> 0 | C12: ='Project Details'!G25 -> 0 | D12: ='Project Details'!H25 -> 0 | E12: ='Project Details'!I25 -> 0 | H12: ='Project Details'!K25 ->  | I12: 0 | J12: ='Project Details'!L25 -> 0 | K12: ='Project Details'!M25 -> 0 | L12: ='Project Details'!O25 -> 0 | M12: ='Project Details'!P25 -> 0 | P12: ='Project Details'!R25 ->  | Q12: 0 | V12: 0 | W12: 0 | X12: =IF(ISERROR(VLOOKUP('Project Details'!$L$13,CDF_IE,3,FALSE)),0,VLOOKUP('Project Details'!$L$13,CDF_IE,3,FALSE)) -> 0 | Y12: 0 | Z12: 0 | AA12: =IF(ISERROR(VLOOKUP('Project Details'!$L$13,CDF_IE,2,FALSE)),0,VLOOKUP('Project Details'!$L$13,CDF_IE,2,FALSE)) -> 0 | AB12: =IF(ISERROR(VLOOKUP('Project Details'!$L$13,CDF_IE,4,FALSE)),0,VLOOKUP('Project Details'!$L$13,CDF_IE,4,FALSE)) -> 0 | AC12: 0 | AD12: 0 | AE12: 0 | AF12: 0 | AG12: 0 | AH12: 0
A13: ='Project Details'!C26 -> 0 | B13: ='Project Details'!E26 -> 0 | C13: ='Project Details'!G26 -> 0 | D13: ='Project Details'!H26 -> 0 | E13: ='Project Details'!I26 -> 0 | H13: ='Project Details'!K26 ->  | I13: 0 | J13: ='Project Details'!L26 -> 0 | K13: ='Project Details'!M26 -> 0 | L13: ='Project Details'!O26 -> 0 | M13: ='Project Details'!P26 -> 0 | P13: ='Project Details'!R26 ->  | Q13: 0 | V13: 0 | W13: 0 | X13: =IF(ISERROR(VLOOKUP('Project Details'!$L$13,CDF_IE,3,FALSE)),0,VLOOKUP('Project Details'!$L$13,CDF_IE,3,FALSE)) -> 0 | Y13: 0 | Z13: 0 | AA13: =IF(ISERROR(VLOOKUP('Project Details'!$L$13,CDF_IE,2,FALSE)),0,VLOOKUP('Project Details'!$L$13,CDF_IE,2,FALSE)) -> 0 | AB13: =IF(ISERROR(VLOOKUP('Project Details'!$L$13,CDF_IE,4,FALSE)),0,VLOOKUP('Project Details'!$L$13,CDF_IE,4,FALSE)) -> 0 | AC13: 0 | AD13: 0 | AE13: 0 | AF13: 0 | AG13: 0 | AH13: 0
A14: ='Project Details'!C27 -> 0 | B14: ='Project Details'!E27 -> 0 | C14: ='Project Details'!G27 -> 0 | D14: ='Project Details'!H27 -> 0 | E14: ='Project Details'!I27 -> 0 | H14: ='Project Details'!K27 ->  | I14: 0 | J14: ='Project Details'!L27 -> 0 | K14: ='Project Details'!M27 -> 0 | L14: ='Project Details'!O27 -> 0 | M14: ='Project Details'!P27 -> 0 | P14: ='Project Details'!R27 ->  | Q14: 0 | V14: 0 | W14: 0 | X14: =IF(ISERROR(VLOOKUP('Project Details'!$L$13,CDF_IE,3,FALSE)),0,VLOOKUP('Project Details'!$L$13,CDF_IE,3,FALSE)) -> 0 | Y14: 0 | Z14: 0 | AA14: =IF(ISERROR(VLOOKUP('Project Details'!$L$13,CDF_IE,2,FALSE)),0,VLOOKUP('Project Details'!$L$13,CDF_IE,2,FALSE)) -> 0 | AB14: =IF(ISERROR(VLOOKUP('Project Details'!$L$13,CDF_IE,4,FALSE)),0,VLOOKUP('Project Details'!$L$13,CDF_IE,4,FALSE)) -> 0 | AC14: 0 | AD14: 0 | AE14: 0 | AF14: 0 | AG14: 0 | AH14: 0
A15: ='Project Details'!C28 -> 0 | B15: ='Project Details'!E28 -> 0 | C15: ='Project Details'!G28 -> 0 | D15: ='Project Details'!H28 -> 0 | E15: ='Project Details'!I28 -> 0 | H15: ='Project Details'!K28 ->  | I15: 0 | J15: ='Project Details'!L28 -> 0 | K15: ='Project Details'!M28 -> 0 | L15: ='Project Details'!O28 -> 0 | M15: ='Project Details'!P28 -> 0 | P15: ='Project Details'!R28 ->  | Q15: 0 | V15: 0 | W15: 0 | X15: =IF(ISERROR(VLOOKUP('Project Details'!$L$13,CDF_IE,3,FALSE)),0,VLOOKUP('Project Details'!$L$13,CDF_IE,3,FALSE)) -> 0 | Y15: 0 | Z15: 0 | AA15: =IF(ISERROR(VLOOKUP('Project Details'!$L$13,CDF_IE,2,FALSE)),0,VLOOKUP('Project Details'!$L$13,CDF_IE,2,FALSE)) -> 0 | AB15: =IF(ISERROR(VLOOKUP('Project Details'!$L$13,CDF_IE,4,FALSE)),0,VLOOKUP('Project Details'!$L$13,CDF_IE,4,FALSE)) -> 0 | AC15: 0 | AD15: 0 | AE15: 0 | AF15: 0 | AG15: 0 | AH15: 0
A16: ='Project Details'!C29 -> 0 | B16: ='Project Details'!E29 -> 0 | C16: ='Project Details'!G29 -> 0 | D16: ='Project Details'!H29 -> 0 | E16: ='Project Details'!I29 -> 0 | H16: ='Project Details'!K29 ->  | I16: 0 | J16: ='Project Details'!L29 -> 0 | K16: ='Project Details'!M29 -> 0 | L16: ='Project Details'!O29 -> 0 | M16: ='Project Details'!P29 -> 0 | P16: ='Project Details'!R29 ->  | Q16: 0 | V16: 0 | W16: 0 | X16: =IF(ISERROR(VLOOKUP('Project Details'!$L$13,CDF_IE,3,FALSE)),0,VLOOKUP('Project Details'!$L$13,CDF_IE,3,FALSE)) -> 0 | Y16: 0 | Z16: 0 | AA16: =IF(ISERROR(VLOOKUP('Project Details'!$L$13,CDF_IE,2,FALSE)),0,VLOOKUP('Project Details'!$L$13,CDF_IE,2,FALSE)) -> 0 | AB16: =IF(ISERROR(VLOOKUP('Project Details'!$L$13,CDF_IE,4,FALSE)),0,VLOOKUP('Project Details'!$L$13,CDF_IE,4,FALSE)) -> 0 | AC16: 0 | AD16: 0 | AE16: 0 | AF16: 0 | AG16: 0 | AH16: 0
A17: ='Project Details'!C30 -> 0 | B17: ='Project Details'!E30 -> 0 | C17: ='Project Details'!G30 -> 0 | D17: ='Project Details'!H30 -> 0 | E17: ='Project Details'!I30 -> 0 | H17: ='Project Details'!K30 ->  | I17: 0 | J17: ='Project Details'!L30 -> 0 | K17: ='Project Details'!M30 -> 0 | L17: ='Project Details'!O30 -> 0 | M17: ='Project Details'!P30 -> 0 | P17: ='Project Details'!R30 ->  | Q17: 0 | V17: 0 | W17: 0 | X17: =IF(ISERROR(VLOOKUP('Project Details'!$L$13,CDF_IE,3,FALSE)),0,VLOOKUP('Project Details'!$L$13,CDF_IE,3,FALSE)) -> 0 | Y17: 0 | Z17: 0 | AA17: =IF(ISERROR(VLOOKUP('Project Details'!$L$13,CDF_IE,2,FALSE)),0,VLOOKUP('Project Details'!$L$13,CDF_IE,2,FALSE)) -> 0 | AB17: =IF(ISERROR(VLOOKUP('Project Details'!$L$13,CDF_IE,4,FALSE)),0,VLOOKUP('Project Details'!$L$13,CDF_IE,4,FALSE)) -> 0 | AC17: 0 | AD17: 0 | AE17: 0 | AF17: 0 | AG17: 0 | AH17: 0
A18: ='Project Details'!C31 -> 0 | B18: ='Project Details'!E31 -> 0 | C18: ='Project Details'!G31 -> 0 | D18: ='Project Details'!H31 -> 0 | E18: ='Project Details'!I31 -> 0 | H18: ='Project Details'!K31 ->  | I18: 0 | J18: ='Project Details'!L31 -> 0 | K18: ='Project Details'!M31 -> 0 | L18: ='Project Details'!O31 -> 0 | M18: ='Project Details'!P31 -> 0 | P18: ='Project Details'!R31 ->  | Q18: 0 | V18: 0 | W18: 0 | X18: =IF(ISERROR(VLOOKUP('Project Details'!$L$13,CDF_IE,3,FALSE)),0,VLOOKUP('Project Details'!$L$13,CDF_IE,3,FALSE)) -> 0 | Y18: 0 | Z18: 0 | AA18: =IF(ISERROR(VLOOKUP('Project Details'!$L$13,CDF_IE,2,FALSE)),0,VLOOKUP('Project Details'!$L$13,CDF_IE,2,FALSE)) -> 0 | AB18: =IF(ISERROR(VLOOKUP('Project Details'!$L$13,CDF_IE,4,FALSE)),0,VLOOKUP('Project Details'!$L$13,CDF_IE,4,FALSE)) -> 0 | AC18: 0 | AD18: 0 | AE18: 0 | AF18: 0 | AG18: 0 | AH18: 0
A19: ='Project Details'!C32 -> 0 | B19: ='Project Details'!E32 -> 0 | C19: ='Project Details'!G32 -> 0 | D19: ='Project Details'!H32 -> 0 | E19: ='Project Details'!I32 -> 0 | H19: ='Project Details'!K32 ->  | I19: 0 | J19: ='Project Details'!L32 -> 0 | K19: ='Project Details'!M32 -> 0 | L19: ='Project Details'!O32 -> 0 | M19: ='Project Details'!P32 -> 0 | P19: ='Project Details'!R32 ->  | Q19: 0 | V19: 0 | W19: 0 | X19: =IF(ISERROR(VLOOKUP('Project Details'!$L$13,CDF_IE,3,FALSE)),0,VLOOKUP('Project Details'!$L$13,CDF_IE,3,FALSE)) -> 0 | Y19: 0 | Z19: 0 | AA19: =IF(ISERROR(VLOOKUP('Project Details'!$L$13,CDF_IE,2,FALSE)),0,VLOOKUP('Project Details'!$L$13,CDF_IE,2,FALSE)) -> 0 | AB19: =IF(ISERROR(VLOOKUP('Project Details'!$L$13,CDF_IE,4,FALSE)),0,VLOOKUP('Project Details'!$L$13,CDF_IE,4,FALSE)) -> 0 | AC19: 0 | AD19: 0 | AE19: 0 | AF19: 0 | AG19: 0 | AH19: 0
A20: ='Project Details'!C33 -> 0 | B20: ='Project Details'!E33 -> 0 | C20: ='Project Details'!G33 -> 0 | D20: ='Project Details'!H33 -> 0 | E20: ='Project Details'!I33 -> 0 | H20: ='Project Details'!K33 ->  | I20: 0 | J20: ='Project Details'!L33 -> 0 | K20: ='Project Details'!M33 -> 0 | L20: ='Project Details'!O33 -> 0 | M20: ='Project Details'!P33 -> 0 | P20: ='Project Details'!R33 ->  | Q20: 0 | V20: 0 | W20: 0 | X20: =IF(ISERROR(VLOOKUP('Project Details'!$L$13,CDF_IE,3,FALSE)),0,VLOOKUP('Project Details'!$L$13,CDF_IE,3,FALSE)) -> 0 | Y20: 0 | Z20: 0 | AA20: =IF(ISERROR(VLOOKUP('Project Details'!$L$13,CDF_IE,2,FALSE)),0,VLOOKUP('Project Details'!$L$13,CDF_IE,2,FALSE)) -> 0 | AB20: =IF(ISERROR(VLOOKUP('Project Details'!$L$13,CDF_IE,4,FALSE)),0,VLOOKUP('Project Details'!$L$13,CDF_IE,4,FALSE)) -> 0 | AC20: 0 | AD20: 0 | AE20: 0 | AF20: 0 | AG20: 0 | AH20: 0
A21: ='Project Details'!C34 -> 0 | B21: ='Project Details'!E34 -> 0 | C21: ='Project Details'!G34 -> 0 | D21: ='Project Details'!H34 -> 0 | E21: ='Project Details'!I34 -> 0 | H21: ='Project Details'!K34 ->  | I21: 0 | J21: ='Project Details'!L34 -> 0 | K21: ='Project Details'!M34 -> 0 | L21: ='Project Details'!O34 -> 0 | M21: ='Project Details'!P34 -> 0 | P21: ='Project Details'!R34 ->  | Q21: 0 | V21: 0 | W21: 0 | X21: =IF(ISERROR(VLOOKUP('Project Details'!$L$13,CDF_IE,3,FALSE)),0,VLOOKUP('Project Details'!$L$13,CDF_IE,3,FALSE)) -> 0 | Y21: 0 | Z21: 0 | AA21: =IF(ISERROR(VLOOKUP('Project Details'!$L$13,CDF_IE,2,FALSE)),0,VLOOKUP('Project Details'!$L$13,CDF_IE,2,FALSE)) -> 0 | AB21: =IF(ISERROR(VLOOKUP('Project Details'!$L$13,CDF_IE,4,FALSE)),0,VLOOKUP('Project Details'!$L$13,CDF_IE,4,FALSE)) -> 0 | AC21: 0 | AD21: 0 | AE21: 0 | AF21: 0 | AG21: 0 | AH21: 0
A22: ='Project Details'!C35 -> 0 | B22: ='Project Details'!E35 -> 0 | C22: ='Project Details'!G35 -> 0 | D22: ='Project Details'!H35 -> 0 | E22: ='Project Details'!I35 -> 0 | H22: ='Project Details'!K35 ->  | I22: 0 | J22: ='Project Details'!L35 -> 0 | K22: ='Project Details'!M35 -> 0 | L22: ='Project Details'!O35 -> 0 | M22: ='Project Details'!P35 -> 0 | P22: ='Project Details'!R35 ->  | Q22: 0 | V22: 0 | W22: 0 | X22: =IF(ISERROR(VLOOKUP('Project Details'!$L$13,CDF_IE,3,FALSE)),0,VLOOKUP('Project Details'!$L$13,CDF_IE,3,FALSE)) -> 0 | Y22: 0 | Z22: 0 | AA22: =IF(ISERROR(VLOOKUP('Project Details'!$L$13,CDF_IE,2,FALSE)),0,VLOOKUP('Project Details'!$L$13,CDF_IE,2,FALSE)) -> 0 | AB22: =IF(ISERROR(VLOOKUP('Project Details'!$L$13,CDF_IE,4,FALSE)),0,VLOOKUP('Project Details'!$L$13,CDF_IE,4,FALSE)) -> 0 | AC22: 0 | AD22: 0 | AE22: 0 | AF22: 0 | AG22: 0 | AH22: 0
A23: ='Project Details'!C36 -> 0 | B23: ='Project Details'!E36 -> 0 | C23: ='Project Details'!G36 -> 0 | D23: ='Project Details'!H36 -> 0 | E23: ='Project Details'!I36 -> 0 | H23: ='Project Details'!K36 ->  | I23: 0 | J23: ='Project Details'!L36 -> 0 | K23: ='Project Details'!M36 -> 0 | L23: ='Project Details'!O36 -> 0 | M23: ='Project Details'!P36 -> 0 | P23: ='Project Details'!R36 ->  | Q23: 0 | V23: 0 | W23: 0 | X23: =IF(ISERROR(VLOOKUP('Project Details'!$L$13,CDF_IE,3,FALSE)),0,VLOOKUP('Project Details'!$L$13,CDF_IE,3,FALSE)) -> 0 | Y23: 0 | Z23: 0 | AA23: =IF(ISERROR(VLOOKUP('Project Details'!$L$13,CDF_IE,2,FALSE)),0,VLOOKUP('Project Details'!$L$13,CDF_IE,2,FALSE)) -> 0 | AB23: =IF(ISERROR(VLOOKUP('Project Details'!$L$13,CDF_IE,4,FALSE)),0,VLOOKUP('Project Details'!$L$13,CDF_IE,4,FALSE)) -> 0 | AC23: 0 | AD23: 0 | AE23: 0 | AF23: 0 | AG23: 0 | AH23: 0
A24: ='Project Details'!C37 -> 0 | B24: ='Project Details'!E37 -> 0 | C24: ='Project Details'!G37 -> 0 | D24: ='Project Details'!H37 -> 0 | E24: ='Project Details'!I37 -> 0 | H24: ='Project Details'!K37 ->  | I24: 0 | J24: ='Project Details'!L37 -> 0 | K24: ='Project Details'!M37 -> 0 | L24: ='Project Details'!O37 -> 0 | M24: ='Project Details'!P37 -> 0 | P24: ='Project Details'!R37 ->  | Q24: 0 | V24: 0 | W24: 0 | X24: =IF(ISERROR(VLOOKUP('Project Details'!$L$13,CDF_IE,3,FALSE)),0,VLOOKUP('Project Details'!$L$13,CDF_IE,3,FALSE)) -> 0 | Y24: 0 | Z24: 0 | AA24: =IF(ISERROR(VLOOKUP('Project Details'!$L$13,CDF_IE,2,FALSE)),0,VLOOKUP('Project Details'!$L$13,CDF_IE,2,FALSE)) -> 0 | AB24: =IF(ISERROR(VLOOKUP('Project Details'!$L$13,CDF_IE,4,FALSE)),0,VLOOKUP('Project Details'!$L$13,CDF_IE,4,FALSE)) -> 0 | AC24: 0 | AD24: 0 | AE24: 0 | AF24: 0 | AG24: 0 | AH24: 0
A25: ='Project Details'!C38 -> 0 | B25: ='Project Details'!E38 -> 0 | C25: ='Project Details'!G38 -> 0 | D25: ='Project Details'!H38 -> 0 | E25: ='Project Details'!I38 -> 0 | H25: ='Project Details'!K38 ->  | I25: 0 | J25: ='Project Details'!L38 -> 0 | K25: ='Project Details'!M38 -> 0 | L25: ='Project Details'!O38 -> 0 | M25: ='Project Details'!P38 -> 0 | P25: ='Project Details'!R38 ->  | Q25: 0 | V25: 0 | W25: 0 | X25: =IF(ISERROR(VLOOKUP('Project Details'!$L$13,CDF_IE,3,FALSE)),0,VLOOKUP('Project Details'!$L$13,CDF_IE,3,FALSE)) -> 0 | Y25: 0 | Z25: 0 | AA25: =IF(ISERROR(VLOOKUP('Project Details'!$L$13,CDF_IE,2,FALSE)),0,VLOOKUP('Project Details'!$L$13,CDF_IE,2,FALSE)) -> 0 | AB25: =IF(ISERROR(VLOOKUP('Project Details'!$L$13,CDF_IE,4,FALSE)),0,VLOOKUP('Project Details'!$L$13,CDF_IE,4,FALSE)) -> 0 | AC25: 0 | AD25: 0 | AE25: 0 | AF25: 0 | AG25: 0 | AH25: 0
A26: ='Project Details'!C39 -> 0 | B26: ='Project Details'!E39 -> 0 | C26: ='Project Details'!G39 -> 0 | D26: ='Project Details'!H39 -> 0 | E26: ='Project Details'!I39 -> 0 | H26: ='Project Details'!K39 ->  | I26: 0 | J26: ='Project Details'!L39 -> 0 | K26: ='Project Details'!M39 -> 0 | L26: ='Project Details'!O39 -> 0 | M26: ='Project Details'!P39 -> 0 | P26: ='Project Details'!R39 ->  | Q26: 0 | V26: 0 | W26: 0 | X26: =IF(ISERROR(VLOOKUP('Project Details'!$L$13,CDF_IE,3,FALSE)),0,VLOOKUP('Project Details'!$L$13,CDF_IE,3,FALSE)) -> 0 | Y26: 0 | Z26: 0 | AA26: =IF(ISERROR(VLOOKUP('Project Details'!$L$13,CDF_IE,2,FALSE)),0,VLOOKUP('Project Details'!$L$13,CDF_IE,2,FALSE)) -> 0 | AB26: =IF(ISERROR(VLOOKUP('Project Details'!$L$13,CDF_IE,4,FALSE)),0,VLOOKUP('Project Details'!$L$13,CDF_IE,4,FALSE)) -> 0 | AC26: 0 | AD26: 0 | AE26: 0 | AF26: 0 | AG26: 0 | AH26: 0
A27: ='Project Details'!C40 -> 0 | B27: ='Project Details'!E40 -> 0 | C27: ='Project Details'!G40 -> 0 | D27: ='Project Details'!H40 -> 0 | E27: ='Project Details'!I40 -> 0 | H27: ='Project Details'!K40 ->  | I27: 0 | J27: ='Project Details'!L40 -> 0 | K27: ='Project Details'!M40 -> 0 | L27: ='Project Details'!O40 -> 0 | M27: ='Project Details'!P40 -> 0 | P27: ='Project Details'!R40 ->  | Q27: 0 | V27: 0 | W27: 0 | X27: =IF(ISERROR(VLOOKUP('Project Details'!$L$13,CDF_IE,3,FALSE)),0,VLOOKUP('Project Details'!$L$13,CDF_IE,3,FALSE)) -> 0 | Y27: 0 | Z27: 0 | AA27: =IF(ISERROR(VLOOKUP('Project Details'!$L$13,CDF_IE,2,FALSE)),0,VLOOKUP('Project Details'!$L$13,CDF_IE,2,FALSE)) -> 0 | AB27: =IF(ISERROR(VLOOKUP('Project Details'!$L$13,CDF_IE,4,FALSE)),0,VLOOKUP('Project Details'!$L$13,CDF_IE,4,FALSE)) -> 0 | AC27: 0 | AD27: 0 | AE27: 0 | AF27: 0 | AG27: 0 | AH27: 0
A28: ='Project Details'!C41 -> 0 | B28: ='Project Details'!E41 -> 0 | C28: ='Project Details'!G41 -> 0 | D28: ='Project Details'!H41 -> 0 | E28: ='Project Details'!I41 -> 0 | H28: ='Project Details'!K41 ->  | I28: 0 | J28: ='Project Details'!L41 -> 0 | K28: ='Project Details'!M41 -> 0 | L28: ='Project Details'!O41 -> 0 | M28: ='Project Details'!P41 -> 0 | P28: ='Project Details'!R41 ->  | Q28: 0 | V28: 0 | W28: 0 | X28: =IF(ISERROR(VLOOKUP('Project Details'!$L$13,CDF_IE,3,FALSE)),0,VLOOKUP('Project Details'!$L$13,CDF_IE,3,FALSE)) -> 0 | Y28: 0 | Z28: 0 | AA28: =IF(ISERROR(VLOOKUP('Project Details'!$L$13,CDF_IE,2,FALSE)),0,VLOOKUP('Project Details'!$L$13,CDF_IE,2,FALSE)) -> 0 | AB28: =IF(ISERROR(VLOOKUP('Project Details'!$L$13,CDF_IE,4,FALSE)),0,VLOOKUP('Project Details'!$L$13,CDF_IE,4,FALSE)) -> 0 | AC28: 0 | AD28: 0 | AE28: 0 | AF28: 0 | AG28: 0 | AH28: 0
A29: ='Project Details'!C42 -> 0 | B29: ='Project Details'!E42 -> 0 | C29: ='Project Details'!G42 -> 0 | D29: ='Project Details'!H42 -> 0 | E29: ='Project Details'!I42 -> 0 | H29: ='Project Details'!K42 ->  | I29: 0 | J29: ='Project Details'!L42 -> 0 | K29: ='Project Details'!M42 -> 0 | L29: ='Project Details'!O42 -> 0 | M29: ='Project Details'!P42 -> 0 | P29: ='Project Details'!R42 ->  | Q29: 0 | V29: 0 | W29: 0 | X29: =IF(ISERROR(VLOOKUP('Project Details'!$L$13,CDF_IE,3,FALSE)),0,VLOOKUP('Project Details'!$L$13,CDF_IE,3,FALSE)) -> 0 | Y29: 0 | Z29: 0 | AA29: =IF(ISERROR(VLOOKUP('Project Details'!$L$13,CDF_IE,2,FALSE)),0,VLOOKUP('Project Details'!$L$13,CDF_IE,2,FALSE)) -> 0 | AB29: =IF(ISERROR(VLOOKUP('Project Details'!$L$13,CDF_IE,4,FALSE)),0,VLOOKUP('Project Details'!$L$13,CDF_IE,4,FALSE)) -> 0 | AC29: 0 | AD29: 0 | AE29: 0 | AF29: 0 | AG29: 0 | AH29: 0
A30: ='Project Details'!C43 -> 0 | B30: ='Project Details'!E43 -> 0 | C30: ='Project Details'!G43 -> 0 | D30: ='Project Details'!H43 -> 0 | E30: ='Project Details'!I43 -> 0 | H30: ='Project Details'!K43 ->  | I30: 0 | J30: ='Project Details'!L43 -> 0 | K30: ='Project Details'!M43 -> 0 | L30: ='Project Details'!O43 -> 0 | M30: ='Project Details'!P43 -> 0 | P30: ='Project Details'!R43 ->  | Q30: 0 | V30: 0 | W30: 0 | X30: =IF(ISERROR(VLOOKUP('Project Details'!$L$13,CDF_IE,3,FALSE)),0,VLOOKUP('Project Details'!$L$13,CDF_IE,3,FALSE)) -> 0 | Y30: 0 | Z30: 0 | AA30: =IF(ISERROR(VLOOKUP('Project Details'!$L$13,CDF_IE,2,FALSE)),0,VLOOKUP('Project Details'!$L$13,CDF_IE,2,FALSE)) -> 0 | AB30: =IF(ISERROR(VLOOKUP('Project Details'!$L$13,CDF_IE,4,FALSE)),0,VLOOKUP('Project Details'!$L$13,CDF_IE,4,FALSE)) -> 0 | AC30: 0 | AD30: 0 | AE30: 0 | AF30: 0 | AG30: 0 | AH30: 0
A31: ='Project Details'!C44 -> 0 | B31: ='Project Details'!E44 -> 0 | C31: ='Project Details'!G44 -> 0 | D31: ='Project Details'!H44 -> 0 | E31: ='Project Details'!I44 -> 0 | H31: ='Project Details'!K44 ->  | I31: 0 | J31: ='Project Details'!L44 -> 0 | K31: ='Project Details'!M44 -> 0 | L31: ='Project Details'!O44 -> 0 | M31: ='Project Details'!P44 -> 0 | P31: ='Project Details'!R44 ->  | Q31: 0 | V31: 0 | W31: 0 | X31: =IF(ISERROR(VLOOKUP('Project Details'!$L$13,CDF_IE,3,FALSE)),0,VLOOKUP('Project Details'!$L$13,CDF_IE,3,FALSE)) -> 0 | Y31: 0 | Z31: 0 | AA31: =IF(ISERROR(VLOOKUP('Project Details'!$L$13,CDF_IE,2,FALSE)),0,VLOOKUP('Project Details'!$L$13,CDF_IE,2,FALSE)) -> 0 | AB31: =IF(ISERROR(VLOOKUP('Project Details'!$L$13,CDF_IE,4,FALSE)),0,VLOOKUP('Project Details'!$L$13,CDF_IE,4,FALSE)) -> 0 | AC31: 0 | AD31: 0 | AE31: 0 | AF31: 0 | AG31: 0 | AH31: 0
A32: ='Project Details'!C45 -> 0 | B32: ='Project Details'!E45 -> 0 | C32: ='Project Details'!G45 -> 0 | D32: ='Project Details'!H45 -> 0 | E32: ='Project Details'!I45 -> 0 | H32: ='Project Details'!K45 ->  | I32: 0 | J32: ='Project Details'!L45 -> 0 | K32: ='Project Details'!M45 -> 0 | L32: ='Project Details'!O45 -> 0 | M32: ='Project Details'!P45 -> 0 | P32: ='Project Details'!R45 ->  | Q32: 0 | V32: 0 | W32: 0 | X32: =IF(ISERROR(VLOOKUP('Project Details'!$L$13,CDF_IE,3,FALSE)),0,VLOOKUP('Project Details'!$L$13,CDF_IE,3,FALSE)) -> 0 | Y32: 0 | Z32: 0 | AA32: =IF(ISERROR(VLOOKUP('Project Details'!$L$13,CDF_IE,2,FALSE)),0,VLOOKUP('Project Details'!$L$13,CDF_IE,2,FALSE)) -> 0 | AB32: =IF(ISERROR(VLOOKUP('Project Details'!$L$13,CDF_IE,4,FALSE)),0,VLOOKUP('Project Details'!$L$13,CDF_IE,4,FALSE)) -> 0 | AC32: 0 | AD32: 0 | AE32: 0 | AF32: 0 | AG32: 0 | AH32: 0
A33: ='Project Details'!C46 -> 0 | B33: ='Project Details'!E46 -> 0 | C33: ='Project Details'!G46 -> 0 | D33: ='Project Details'!H46 -> 0 | E33: ='Project Details'!I46 -> 0 | H33: ='Project Details'!K46 ->  | I33: 0 | J33: ='Project Details'!L46 -> 0 | K33: ='Project Details'!M46 -> 0 | L33: ='Project Details'!O46 -> 0 | M33: ='Project Details'!P46 -> 0 | P33: ='Project Details'!R46 ->  | Q33: 0 | V33: 0 | W33: 0 | X33: =IF(ISERROR(VLOOKUP('Project Details'!$L$13,CDF_IE,3,FALSE)),0,VLOOKUP('Project Details'!$L$13,CDF_IE,3,FALSE)) -> 0 | Y33: 0 | Z33: 0 | AA33: =IF(ISERROR(VLOOKUP('Project Details'!$L$13,CDF_IE,2,FALSE)),0,VLOOKUP('Project Details'!$L$13,CDF_IE,2,FALSE)) -> 0 | AB33: =IF(ISERROR(VLOOKUP('Project Details'!$L$13,CDF_IE,4,FALSE)),0,VLOOKUP('Project Details'!$L$13,CDF_IE,4,FALSE)) -> 0 | AC33: 0 | AD33: 0 | AE33: 0 | AF33: 0 | AG33: 0 | AH33: 0
A34: ='Project Details'!C47 -> 0 | B34: ='Project Details'!E47 -> 0 | C34: ='Project Details'!G47 -> 0 | D34: ='Project Details'!H47 -> 0 | E34: ='Project Details'!I47 -> 0 | H34: ='Project Details'!K47 ->  | I34: 0 | J34: ='Project Details'!L47 -> 0 | K34: ='Project Details'!M47 -> 0 | L34: ='Project Details'!O47 -> 0 | M34: ='Project Details'!P47 -> 0 | P34: ='Project Details'!R47 ->  | Q34: 0 | V34: 0 | W34: 0 | X34: =IF(ISERROR(VLOOKUP('Project Details'!$L$13,CDF_IE,3,FALSE)),0,VLOOKUP('Project Details'!$L$13,CDF_IE,3,FALSE)) -> 0 | Y34: 0 | Z34: 0 | AA34: =IF(ISERROR(VLOOKUP('Project Details'!$L$13,CDF_IE,2,FALSE)),0,VLOOKUP('Project Details'!$L$13,CDF_IE,2,FALSE)) -> 0 | AB34: =IF(ISERROR(VLOOKUP('Project Details'!$L$13,CDF_IE,4,FALSE)),0,VLOOKUP('Project Details'!$L$13,CDF_IE,4,FALSE)) -> 0 | AC34: 0 | AD34: 0 | AE34: 0 | AF34: 0 | AG34: 0 | AH34: 0
A35: ='Project Details'!C48 -> 0 | B35: ='Project Details'!E48 -> 0 | C35: ='Project Details'!G48 -> 0 | D35: ='Project Details'!H48 -> 0 | E35: ='Project Details'!I48 -> 0 | H35: ='Project Details'!K48 ->  | I35: 0 | J35: ='Project Details'!L48 -> 0 | K35: ='Project Details'!M48 -> 0 | L35: ='Project Details'!O48 -> 0 | M35: ='Project Details'!P48 -> 0 | P35: ='Project Details'!R48 ->  | Q35: 0 | V35: 0 | W35: 0 | X35: =IF(ISERROR(VLOOKUP('Project Details'!$L$13,CDF_IE,3,FALSE)),0,VLOOKUP('Project Details'!$L$13,CDF_IE,3,FALSE)) -> 0 | Y35: 0 | Z35: 0 | AA35: =IF(ISERROR(VLOOKUP('Project Details'!$L$13,CDF_IE,2,FALSE)),0,VLOOKUP('Project Details'!$L$13,CDF_IE,2,FALSE)) -> 0 | AB35: =IF(ISERROR(VLOOKUP('Project Details'!$L$13,CDF_IE,4,FALSE)),0,VLOOKUP('Project Details'!$L$13,CDF_IE,4,FALSE)) -> 0 | AC35: 0 | AD35: 0 | AE35: 0 | AF35: 0 | AG35: 0 | AH35: 0
A36: ='Project Details'!C49 -> 0 | B36: ='Project Details'!E49 -> 0 | C36: ='Project Details'!G49 -> 0 | D36: ='Project Details'!H49 -> 0 | E36: ='Project Details'!I49 -> 0 | H36: ='Project Details'!K49 ->  | I36: 0 | J36: ='Project Details'!L49 -> 0 | K36: ='Project Details'!M49 -> 0 | L36: ='Project Details'!O49 -> 0 | M36: ='Project Details'!P49 -> 0 | P36: ='Project Details'!R49 ->  | Q36: 0 | V36: 0 | W36: 0 | X36: =IF(ISERROR(VLOOKUP('Project Details'!$L$13,CDF_IE,3,FALSE)),0,VLOOKUP('Project Details'!$L$13,CDF_IE,3,FALSE)) -> 0 | Y36: 0 | Z36: 0 | AA36: =IF(ISERROR(VLOOKUP('Project Details'!$L$13,CDF_IE,2,FALSE)),0,VLOOKUP('Project Details'!$L$13,CDF_IE,2,FALSE)) -> 0 | AB36: =IF(ISERROR(VLOOKUP('Project Details'!$L$13,CDF_IE,4,FALSE)),0,VLOOKUP('Project Details'!$L$13,CDF_IE,4,FALSE)) -> 0 | AC36: 0 | AD36: 0 | AE36: 0 | AF36: 0 | AG36: 0 | AH36: 0
A37: ='Project Details'!C50 -> 0 | B37: ='Project Details'!E50 -> 0 | C37: ='Project Details'!G50 -> 0 | D37: ='Project Details'!H50 -> 0 | E37: ='Project Details'!I50 -> 0 | H37: ='Project Details'!K50 ->  | I37: 0 | J37: ='Project Details'!L50 -> 0 | K37: ='Project Details'!M50 -> 0 | L37: ='Project Details'!O50 -> 0 | M37: ='Project Details'!P50 -> 0 | P37: ='Project Details'!R50 ->  | Q37: 0 | V37: 0 | W37: 0 | X37: =IF(ISERROR(VLOOKUP('Project Details'!$L$13,CDF_IE,3,FALSE)),0,VLOOKUP('Project Details'!$L$13,CDF_IE,3,FALSE)) -> 0 | Y37: 0 | Z37: 0 | AA37: =IF(ISERROR(VLOOKUP('Project Details'!$L$13,CDF_IE,2,FALSE)),0,VLOOKUP('Project Details'!$L$13,CDF_IE,2,FALSE)) -> 0 | AB37: =IF(ISERROR(VLOOKUP('Project Details'!$L$13,CDF_IE,4,FALSE)),0,VLOOKUP('Project Details'!$L$13,CDF_IE,4,FALSE)) -> 0 | AC37: 0 | AD37: 0 | AE37: 0 | AF37: 0 | AG37: 0 | AH37: 0
A38: ='Project Details'!C51 -> 0 | B38: ='Project Details'!E51 -> 0 | C38: ='Project Details'!G51 -> 0 | D38: ='Project Details'!H51 -> 0 | E38: ='Project Details'!I51 -> 0 | H38: ='Project Details'!K51 ->  | I38: 0 | J38: ='Project Details'!L51 -> 0 | K38: ='Project Details'!M51 -> 0 | L38: ='Project Details'!O51 -> 0 | M38: ='Project Details'!P51 -> 0 | P38: ='Project Details'!R51 ->  | Q38: 0 | V38: 0 | W38: 0 | X38: =IF(ISERROR(VLOOKUP('Project Details'!$L$13,CDF_IE,3,FALSE)),0,VLOOKUP('Project Details'!$L$13,CDF_IE,3,FALSE)) -> 0 | Y38: 0 | Z38: 0 | AA38: =IF(ISERROR(VLOOKUP('Project Details'!$L$13,CDF_IE,2,FALSE)),0,VLOOKUP('Project Details'!$L$13,CDF_IE,2,FALSE)) -> 0 | AB38: =IF(ISERROR(VLOOKUP('Project Details'!$L$13,CDF_IE,4,FALSE)),0,VLOOKUP('Project Details'!$L$13,CDF_IE,4,FALSE)) -> 0 | AC38: 0 | AD38: 0 | AE38: 0 | AF38: 0 | AG38: 0 | AH38: 0

Sheet Lookups (hidden)
A1: ExistingLighitng | B1: ExistingFixtureType2 | C1: ExistingFixtureType3 | D1: ExistingFixtureType4 | E1: ExistingFixtureType5 | F1: ExistingFixtureType6 | G1: ExistingFixtureType7 | H1: ExistingFixtureType8 | I1: ExistingFixtureType9 | J1: ExistingFixtureType10 | K1: ExistingFixtureType11
A2: Fluorescent | B2: T8 4ft Normal Ballast | C2: T8 4ft Low Ballast | D2: T8 4ft High Ballast | E2: T8/T12 All Other Lengths | F2: T5 Lamp | G2: CFL | H2: Metal Halide | I2: High Pressure Sodium | J2: T12 Lamp | K2: User Defined
A3: U-Tube, ES Lamp, EE Mag Ballast | B3: Bi-level Stairwell, Hallway, and Garage Fixture w/ Occ Sensor, 2-lamp T8 | C3: Fluorescent, 48" (1) 32W T8, BF <0.85 | D3: Fluorescent, 48" (2) 28W T8, BF >1.1 | E3: Fluorescent, 18" T8 Lamp | F3: Fluorescent, (1) 46", T5/HO Lamp, NBF | G3: CFL, 10W, Quad, Mag Ballast | H3: Metal Halide, (1) 20W Lamp, Electronic Ballast | I3: High Pressure Sodium, (1) 35W Lamp | J3: Fluorescent, 18" T12 Lamp | K3: =Schedules!A27 -> 0
A4: U-Tube, T8 Lamp | B4: Fluorescent, 48" (1) 25W T8, NBF | C4: Fluorescent, 48" (2) 25W T8, BF <0.85 | D4: Fluorescent, 48" (2) 32W T8, BF >1.1 | E4: Fluorescent, 24" T8 Lamp | F4: Fluorescent, (2) 46", T5/HO Lamp, NBF | G4: CFL, 13W, Mag Ballast | H4: Metal Halide, (1) 22W Lamp, Electronic Ballast | I4: High Pressure Sodium, (1) 50W Lamp | J4: Fluorescent, 18" (2) T12 Lamps | K4: =Schedules!A28 -> 0
A5: U-Tube, 2 Lamps | B5: Fluorescent, 48" (1) 32W T8, NBF | C5: Fluorescent, 48" (2) 28W T8, BF <0.85 | D5: Fluorescent, 48" (3) 25W T8, BF >1.1 | E5: Fluorescent, 24" (2) T8 Lamps | F5: Fluorescent, (2) 46", 54W T5 Lamp, NBF | G5: CFL, 13W, Electronic Ballast | H5: Metal Halide, (1) 39W Lamp, Electronic Ballast | I5: High Pressure Sodium, (1) 70W Lamp | J5: Fluorescent, 24" T12 Lamp | K5: =Schedules!A29 -> 0
A6: U-Tube, 2 ES Lamps, EE Mag Ballast | B6: Fluorescent, 48" (2) 25W T8, 0.96-1.1 | C6: Fluorescent, 48" (2) 32W T8, BF <0.85 | D6: Fluorescent, 48" (3) 28W T8, BF >1.1 | E6: Fluorescent, 24" (3) T8 Lamps, BF 0.96-1.1 | F6: Fluorescent (3) 46" 54W T5/HO Lamp | G6: CFL, 13W, Quad, 2-Lamp, Electronic Ballast | H6: Metal Halide, (2) 39W Lamp, Electronic Ballast | I6: High Pressure Sodium, (1) 100W Lamp | J6: Fluorescent, 24" (2) T12 Lamps | K6: =Schedules!A30 -> 0
A7: U-Tube, 2 T8 Lamps | B7: Fluorescent, 48" (2) 25W T8, NBF | C7: Fluorescent, 48" (3) 25W T8, BF <0.85 | D7: Fluorescent, 48" (3) 32W T8, BF >1.1 | E7: Fluorescent, 24" (4) T8 Lamps | F7: Fluorescent (4) 46" 54W T5/HO Lamp | G7: CFL, 13W, Quad, 2-Lamp, Mag Ballast | H7: Metal Halide, (1) 50W Lamp, Electronic Ballast | I7: High Pressure Sodium, (1) 150W Lamp | J7: Fluorescent, 24" (3) T12 Lamps | K7: =Schedules!A31 -> 0
A8: Circular Lamp, 6" Diameter | B8: Fluorescent, 48" (2) 28W T8, 0.96-1.1 | C8: Fluorescent, 48" (3) 28W T8, BF <0.85 | D8: Fluorescent, 48" (4) 25W T8, BF >1.1 | E8: Fluorescent, 36" (2) T8 Lamps | F8: Fluorescent (6) 46" 54W T5/HO Lamp | G8: CFL, 13W, Quad, 3-Lamp Mag Ballast | H8: Metal Halide, (1) 70W Lamp, Electronic Ballast | I8: High Pressure Sodium, (1) 200W Lamp | J8: Fluorescent, 24" (4) T12 Lamps | K8: =Schedules!A32 -> 0
A9: Circular Lamp, 8" Diameter | B9: Fluorescent, 48" (2) 28W T8, NBF | C9: Fluorescent, 48" (3) 32W T8, BF <0.85 | D9: Fluorescent, 48" (4) 28W T8, BF >1.1 | E9: Fluorescent, 60" T8 Lamp, NBF | F9: Fluorescent (8) 46" 54W T5 /HO Lamp | G9: CFL, 15W, Quad, Mag Ballast | H9: Metal Halide, (1) 100W Lamp, Electronic Ballast | I9: High Pressure Sodium, (1) 250W Lamp | J9: Fluorescent, 36" (2) T12 Lamps | K9: =Schedules!A33 -> 0
A10: Circular Lamp, 12" Diameter | B10: Fluorescent, 48" (2) 32W T8, 0.96-1.1 | C10: Fluorescent, 48" (4) 25W T8, BF <0.85 | D10: Fluorescent, 48" (4) 32W T8, BF >1.1 | E10: Fluorescent, 60", T8 Lamp, HO BF | G10: CFL, 16W, 2D Lamp | H10: Metal Halide, (1) 150W Lamp, Electronic Ballast | I10: High Pressure Sodium, (1) 310W Lamp | J10: Fluorescent, 48" T12 Lamp | K10: =Schedules!A34 -> 0
A11: Circular Lamp, 16" Diameter | B11: Fluorescent, 48" (2) 32W T8, NBF | C11: Fluorescent, 48" (4) 28W T8, BF <0.85 | D11: Fluorescent, 48" (6) 32W T8, BF >1.1 | E11: Fluorescent, 60", (2) T8 Lamps, VHLO BF | G11: CFL, 17W, Quad, Mag Ballast | H11: Metal Halide, (1) 175W Lamp, Electronic Ballast | I11: High Pressure Sodium, (1) 360W Lamp | J11: Fluorescent, 48" (2) T12 Lamps | K11: =Schedules!A35 -> 0
A12: Circular Lamp, 20W | B12: Fluorescent, 48" (3) 25W T8, 0.96-1.1 | C12: Fluorescent, 48" (4) 32W T8, BF <0.85 | E12: Fluorescent, 60", T12 HO (Refrig. Display Case) | G12: CFL, 17W, Quad, 2-Lamp, Mag Ballast | H12: Metal Halide, (1) 200W Lamp, Electronic Ballast | I12: High Pressure Sodium, (1) 400W Lamp | J12: Fluorescent, 48" (3) T12 Lamps | K12: =Schedules!A36 -> 0
A13: Circular Lamp, 22W | B13: Fluorescent, 48" (3) 25W T8, NBF | C13: Fluorescent, 48" (6) 32W T8, BF <0.85 | E13: Fluorescent, 60" (2) T12 HO (Refrig. Display Case) | G13: CFL, 18W, Quad, Mag Ballast | H13: Metal Halide, (1) 250W Lamp, Electronic Ballast | I13: High Pressure Sodium, (1) 750W Lamp | J13: Fluorescent, 48" (4) T12 Lamps | K13: =Schedules!A37 -> 0
A14: Circular Lamp, 32W | B14: Fluorescent, 48" (3) 28W T8, 0.96-1.1 | E14: Fluorescent, 60" (2) T8 Lamps | G14: CFL, 18W, Pin Base | H14: Metal Halide, (1) 320W Lamp, Electronic Ballast | I14: High Pressure Sodium, (1) 1000W Lamp | J14: Fluorescent, 48" (6) T12 Lamps | K14: =Schedules!A38 -> 0
B15: Fluorescent, 48" (3) 28W T8, NBF | E15: Fluorescent, 60" (4) T8 Lamps | G15: CFL, 18W, Pin Base, Electronic Ballast | H15: Metal Halide, (1) 350W Lamp, Electronic Ballast | J15: Fluorescent, 60" T12 Lamp | K15: =Schedules!A39 -> 0
B16: Fluorescent, 48" (3) 32W T8, 0.96-1.1 | E16: Fluorescent, 72", T12 HO (Refrig. Display Case) | G16: CFL, 18W, Quad, Electronic Ballast | H16: Metal Halide, (1) 400W Lamp, Electronic Ballast | J16: Fluorescent, 60" T12 HO Lamp | K16: =Schedules!A40 -> 0
B17: Fluorescent, 48" (3) 32W T8, NBF | E17: Fluorescent, 72" (2) T12 HO (Refrig. Display Case) | G17: CFL, 18W, Quad, 2-Lamp, Mag Ballast | H17: Metal Halide, (1) 32W Lamp, Mag Ballast | J17: Fluorescent, 60" (2) T12 Lamps | K17: =Schedules!A41 -> 0
B18: Fluorescent, 48" (4) 25W T8, 0.96-1.1 | E18: Fluorescent, 96" (2) T8 Lamps, BF<0.85 | G18: CFL, 18W, Quad, 2-Lamp, Electronic Ballast | H18: Metal Halide, (1) 50W Lamp, Mag Ballast | J18: Fluorescent, 60" (2) T12 HO Lamps | K18: =Schedules!A42 -> 0
B19: Fluorescent, 48" (4) 25W T8, NBF | E19: Fluorescent, 96" (1) T8 Lamp | G19: CFL, 20W, Quad, Mag Ballast | H19: Metal Halide, (1) 70W Lamp, Mag Ballast | J19: Fluorescent, 60" (4) T12 Lamps | K19: =Schedules!A43 -> 0
B20: Fluorescent, 48" (4) 28W T8, 0.96-1.1 | E20: Fluorescent, 96" (4) T8 Lamps | G20: CFL, 20W, Quad, 2-Lamp, Mag Ballast | H20: Metal Halide, (1) 100W Lamp, Mag Ballast | J20: Fluorescent, 96" T12 Lamp | K20: =Schedules!A44 -> 0
B21: Fluorescent, 48" (4) 28W T8, NBF | G21: CFL, 22W, Quad, Mag Ballast | H21: Metal Halide, (1) 150W Lamp, Mag Ballast | J21: Fluorescent, 96" T12 Lamp, HO | K21: =Schedules!A45 -> 0
B22: Fluorescent, 48" (4) 32W T8, 0.96-1.1 | G22: CFL, 22W, Quad, 2-Lamp, Mag Ballast | H22: Metal Halide, (1) 175W Lamp, Mag Ballast | J22: Fluorescent, 96" (2) T12 Lamps | K22: =Schedules!A46 -> 0
B23: Fluorescent, 48" (4) 32W T8, NBF | G23: CFL, 22W, Quad, 3-Lamp, Mag Ballast | H23: Metal Halide, (1) 250W Lamp, Mag Ballast | J23: Fluorescent, 96" (2) T12 Lamp, HO | K23: =Schedules!A47 -> 0
B24: Fluorescent, 48" (6) 32W T8, NBF | G24: CFL, 26W, Quad, Mag Ballast | H24: Metal Halide, (1) 400W Lamp, Mag Ballast | J24: Fluorescent, 96" (4) T12 Lamps | K24: =Schedules!A48 -> 0
G25: CFL, 26W, Quad, Electronic Ballast | H25: Metal Halide, (2) 400W Lamp, Mag Ballast | K25: =Schedules!A49 -> 0
G26: CFL, 26W, Quad, 2-Lamp, Mag Ballast | H26: Metal Halide, (1) 750W Lamp, Mag Ballast | K26: =Schedules!A50 -> 0
G27: CFL, 26W, Quad, 2-Lamp, Electronic Ballast | H27: Metal Halide, (1) 1000W Lamp, Mag Ballast | K27: =Schedules!A51 -> 0
G28: CFL, 26W, Quad, 3-Lamp, Mag Ballast | H28: Metal Halide, (1) 1500W Lamp, Mag Ballast | K28: =Schedules!A52 -> 0
G29: CFL, 26W, Quad, 6-Lamp, Electronic Ballast | K29: =Schedules!A53 -> 0
G30: CFL, 32W, Quad, Electronic Ballast | K30: =Schedules!A54 -> 0
G31: CFL, 32W, Quad, 2-Lamp, Electronic Ballast | K31: =Schedules!A55 -> 0
G32: CFL, 40W, Quad, Electronic Ballast | K32: =Schedules!A56 -> 0
G33: CFL, 40W, Quad, 2-Lamp, Electronic Eallast | K33: =Schedules!A57 -> 0
G34: CFL, 50W, Twin, Electronic Ballast | K34: =Schedules!A58 -> 0
G35: CFL, 55W, Twin, Electronic Ballast, BF<0.94 | K35: =Schedules!A59 -> 0
G36: CFL, 57W, Triple, Electronic Ballast, BF=0.94 | K36: =Schedules!A60 -> 0
A39: Existing Fixture Type | B39: EXISTING_EQUIPMENT | C39: Existing Watts Per Rebate Unit | D39: Reduced Wattage Baseline
A40: Fluorescent | B40: U-Tube, ES Lamp, EE Mag Ballast | C40: 43 | D40: 22
A41: Fluorescent | B41: U-Tube, T8 Lamp | C41: 31 | D41: 16
A42: Fluorescent | B42: U-Tube, 2 Lamps | C42: 59 | D42: 30
A43: Fluorescent | B43: U-Tube, 2 ES Lamps, EE Mag Ballast | C43: 72 | D43: 36
A44: Fluorescent | B44: U-Tube, 2 T8 Lamps | C44: 58 | D44: 29
A45: Fluorescent | B45: Circular Lamp, 6" Diameter | C45: 25 | D45: 13
A46: Fluorescent | B46: Circular Lamp, 8" Diameter | C46: 26 | D46: 13
A47: Fluorescent | B47: Circular Lamp, 12" Diameter | C47: 32 | D47: 16
A48: Fluorescent | B48: Circular Lamp, 16" Diameter | C48: 40 | D48: 20
A49: Fluorescent | B49: Circular Lamp, 20W | C49: 20 | D49: 10
A50: Fluorescent | B50: Circular Lamp, 22W | C50: 22 | D50: 11
A51: Fluorescent | B51: Circular Lamp, 32W | C51: 40 | D51: 20
A52: T8 4ft Normal Ballast | B52: Bi-level Stairwell, Hallway, and Garage Fixture w/ Occ Sensor, 2-lamp T8 | C52: 48.4 | D52: 25
A53: T8 4ft Normal Ballast | B53: Fluorescent, 48" (1) 25W T8, NBF | C53: 25 | D53: 13
A54: T8 4ft Normal Ballast | B54: Fluorescent, 48" (1) 32W T8, NBF | C54: 28 | D54: 14
A55: T8 4ft Normal Ballast | B55: Fluorescent, 48" (2) 25W T8, 0.96-1.1 | C55: 50 | D55: 25
A56: T8 4ft Normal Ballast | B56: Fluorescent, 48" (2) 25W T8, NBF | C56: 44 | D56: 22
A57: T8 4ft Normal Ballast | B57: Fluorescent, 48" (2) 28W T8, 0.96-1.1 | C57: 53 | D57: 27
A58: T8 4ft Normal Ballast | B58: Fluorescent, 48" (2) 28W T8, NBF | C58: 48 | D58: 24
A59: T8 4ft Normal Ballast | B59: Fluorescent, 48" (2) 32W T8, 0.96-1.1 | C59: 63 | D59: 32
A60: T8 4ft Normal Ballast | B60: Fluorescent, 48" (2) 32W T8, NBF | C60: 55 | D60: 28
A61: T8 4ft Normal Ballast | B61: Fluorescent, 48" (3) 25W T8, 0.96-1.1 | C61: 70 | D61: 35
A62: T8 4ft Normal Ballast | B62: Fluorescent, 48" (3) 25W T8, NBF | C62: 65 | D62: 33
A63: T8 4ft Normal Ballast | B63: Fluorescent, 48" (3) 28W T8, 0.96-1.1 | C63: 76 | D63: 38
A64: T8 4ft Normal Ballast | B64: Fluorescent, 48" (3) 28W T8, NBF | C64: 71 | D64: 36
A65: T8 4ft Normal Ballast | B65: Fluorescent, 48" (3) 32W T8, 0.96-1.1 | C65: 90 | D65: 45
A66: T8 4ft Normal Ballast | B66: Fluorescent, 48" (3) 32W T8, NBF | C66: 82 | D66: 41
A67: T8 4ft Normal Ballast | B67: Fluorescent, 48" (4) 25W T8, 0.96-1.1 | C67: 99 | D67: 50
A68: T8 4ft Normal Ballast | B68: Fluorescent, 48" (4) 25W T8, NBF | C68: 86 | D68: 43
A69: T8 4ft Normal Ballast | B69: Fluorescent, 48" (4) 28W T8, 0.96-1.1 | C69: 107 | D69: 54
A70: T8 4ft Normal Ballast | B70: Fluorescent, 48" (4) 28W T8, NBF | C70: 95 | D70: 48
A71: T8 4ft Normal Ballast | B71: Fluorescent, 48" (4) 32W T8, 0.96-1.1 | C71: 114 | D71: 57
A72: T8 4ft Normal Ballast | B72: Fluorescent, 48" (4) 32W T8, NBF | C72: 109 | D72: 55
A73: T8 4ft Normal Ballast | B73: Fluorescent, 48" (6) 32W T8, NBF | C73: 164 | D73: 82
A74: T8 4ft Low Ballast | B74: Fluorescent, 48" (1) 32W T8, BF <0.85 | C74: 25 | D74: 13
A75: T8 4ft Low Ballast | B75: Fluorescent, 48" (2) 25W T8, BF <0.85 | C75: 38 | D75: 19
A76: T8 4ft Low Ballast | B76: Fluorescent, 48" (2) 28W T8, BF <0.85 | C76: 42 | D76: 21
A77: T8 4ft Low Ballast | B77: Fluorescent, 48" (2) 32W T8, BF <0.85 | C77: 48 | D77: 24
A78: T8 4ft Low Ballast | B78: Fluorescent, 48" (3) 25W T8, BF <0.85 | C78: 58 | D78: 29
A79: T8 4ft Low Ballast | B79: Fluorescent, 48" (3) 28W T8, BF <0.85 | C79: 64 | D79: 32
A80: T8 4ft Low Ballast | B80: Fluorescent, 48" (3) 32W T8, BF <0.85 | C80: 73 | D80: 37
A81: T8 4ft Low Ballast | B81: Fluorescent, 48" (4) 25W T8, BF <0.85 | C81: 77 | D81: 39
A82: T8 4ft Low Ballast | B82: Fluorescent, 48" (4) 28W T8, BF <0.85 | C82: 85 | D82: 43
A83: T8 4ft Low Ballast | B83: Fluorescent, 48" (4) 32W T8, BF <0.85 | C83: 96 | D83: 48
A84: T8 4ft Low Ballast | B84: Fluorescent, 48" (6) 32W T8, BF <0.85 | C84: 146 | D84: 73
A85: T8 4ft High Ballast | B85: Fluorescent, 48" (2) 28W T8, BF >1.1 | C85: 65 | D85: 33
A86: T8 4ft High Ballast | B86: Fluorescent, 48" (2) 32W T8, BF >1.1 | C86: 74 | D86: 37
A87: T8 4ft High Ballast | B87: Fluorescent, 48" (3) 25W T8, BF >1.1 | C87: 91 | D87: 46
A88: T8 4ft High Ballast | B88: Fluorescent, 48" (3) 28W T8, BF >1.1 | C88: 97 | D88: 49
A89: T8 4ft High Ballast | B89: Fluorescent, 48" (3) 32W T8, BF >1.1 | C89: 111 | D89: 56
A90: T8 4ft High Ballast | B90: Fluorescent, 48" (4) 25W T8, BF >1.1 | C90: 119 | D90: 60
A91: T8 4ft High Ballast | B91: Fluorescent, 48" (4) 28W T8, BF >1.1 | C91: 128 | D91: 64
A92: T8 4ft High Ballast | B92: Fluorescent, 48" (4) 32W T8, BF >1.1 | C92: 146 | D92: 73
A93: T8 4ft High Ballast | B93: Fluorescent, 48" (6) 32W T8, BF >1.1 | C93: 227 | D93: 114
A94: T8 and T12 All Other Lengths | B94: Fluorescent, 18" T8 Lamp | C94: 19 | D94: 10
A95: T8 and T12 All Other Lengths | B95: Fluorescent, 24" T8 Lamp | C95: 20 | D95: 10
A96: T8 and T12 All Other Lengths | B96: Fluorescent, 24" (2) T8 Lamps | C96: 31 | D96: 16
A97: T8 and T12 All Other Lengths | B97: Fluorescent, 24" (3) T8 Lamps, BF 0.96-1.1 | C97: 48 | D97: 24
A98: T8 and T12 All Other Lengths | B98: Fluorescent, 24" (4) T8 Lamps | C98: 66 | D98: 33
A99: T8 and T12 All Other Lengths | B99: Fluorescent, 36" (2) T8 Lamps | C99: 46 | D99: 23
A100: T8 and T12 All Other Lengths | B100: Fluorescent, 60" T8 Lamp, NBF | C100: 36 | D100: 18
A101: T8 and T12 All Other Lengths | B101: Fluorescent, 60", T8 Lamp, HO BF | C101: 57 | D101: 29
A102: T8 and T12 All Other Lengths | B102: Fluorescent, 60", (2) T8 Lamps, VHLO BF | C102: 102 | D102: 51
A103: T8 and T12 All Other Lengths | B103: Fluorescent, 60", T12 HO (Refrig. Display Case) | C103: 69 | D103: 35
A104: T8 and T12 All Other Lengths | B104: Fluorescent, 60" (2) T12 HO (Refrig. Display Case) | C104: 132 | D104: 66
A105: T8 and T12 All Other Lengths | B105: Fluorescent, 60" (2) T8 Lamps | C105: 72 | D105: 36
A106: T8 and T12 All Other Lengths | B106: Fluorescent, 60" (4) T8 Lamps | C106: 134 | D106: 67
A107: T8 and T12 All Other Lengths | B107: Fluorescent, 72", T12 HO (Refrig. Display Case) | C107: 120 | D107: 60
A108: T8 and T12 All Other Lengths | B108: Fluorescent, 72" (2) T12 HO (Refrig. Display Case) | C108: 194 | D108: 97
A109: T8 and T12 All Other Lengths | B109: Fluorescent, 96" (2) T8 Lamps, BF<0.85 | C109: 98 | D109: 49
A110: T8 and T12 All Other Lengths | B110: Fluorescent, 96" (1) T8 Lamp | C110: 57 | D110: 29
A111: T8 and T12 All Other Lengths | B111: Fluorescent, 96" (4) T8 Lamps | C111: 220 | D111: 110
A112: T5 Lamp | B112: Fluorescent, (1) 46", T5/HO Lamp, NBF | C112: 62 | D112: 31
A113: T5 Lamp | B113: Fluorescent, (2) 46", T5/HO Lamp, NBF | C113: 118 | D113: 59
A114: T5 Lamp | B114: Fluorescent, (2) 46", 54W T5 Lamp, NBF | C114: 107 | D114: 54
A115: T5 Lamp | B115: Fluorescent (3) 46" 54W T5/HO Lamp | C115: 182 | D115: 91
A116: T5 Lamp | B116: Fluorescent (4) 46" 54W T5/HO Lamp | C116: 237 | D116: 119
A117: T5 Lamp | B117: Fluorescent (6) 46" 54W T5/HO Lamp | C117: 355 | D117: 178
A118: T5 Lamp | B118: Fluorescent (8) 46" 54W T5 /HO Lamp | C118: 473 | D118: 237
A119: CFL | B119: CFL, 10W, Quad, Mag Ballast | C119: 15 | D119: 7
A120: CFL | B120: CFL, 13W, Mag Ballast | C120: 17 | D120: 8
A121: CFL | B121: CFL, 13W, Electronic Ballast | C121: 15 | D121: 7
A122: CFL | B122: CFL, 13W, Quad, 2-Lamp, Electronic Ballast | C122: 29 | D122: 14
A123: CFL | B123: CFL, 13W, Quad, 2-Lamp, Mag Ballast | C123: 31 | D123: 15
A124: CFL | B124: CFL, 13W, Quad, 3-Lamp Mag Ballast | C124: 48 | D124: 22
A125: CFL | B125: CFL, 15W, Quad, Mag Ballast | C125: 20 | D125: 10
A126: CFL | B126: CFL, 16W, 2D Lamp | C126: 26 | D126: 12
A127: CFL | B127: CFL, 17W, Quad, Mag Ballast | C127: 24 | D127: 11
A128: CFL | B128: CFL, 17W, Quad, 2-Lamp, Mag Ballast | C128: 48 | D128: 22
A129: CFL | B129: CFL, 18W, Quad, Mag Ballast | C129: 23 | D129: 11
A130: CFL | B130: CFL, 18W, Pin Base | C130: 26 | D130: 12
A131: CFL | B131: CFL, 18W, Pin Base, Electronic Ballast | C131: 20 | D131: 10
A132: CFL | B132: CFL, 18W, Quad, Electronic Ballast | C132: 20 | D132: 10
A133: CFL | B133: CFL, 18W, Quad, 2-Lamp, Mag Ballast | C133: 44 | D133: 21
A134: CFL | B134: CFL, 18W, Quad, 2-Lamp, Electronic Ballast | C134: 36 | D134: 17
A135: CFL | B135: CFL, 20W, Quad, Mag Ballast | C135: 23 | D135: 11
A136: CFL | B136: CFL, 20W, Quad, 2-Lamp, Mag Ballast | C136: 46 | D136: 22
A137: CFL | B137: CFL, 22W, Quad, Mag Ballast | C137: 24 | D137: 11
A138: CFL | B138: CFL, 22W, Quad, 2-Lamp, Mag Ballast | C138: 48 | D138: 22
A139: CFL | B139: CFL, 22W, Quad, 3-Lamp, Mag Ballast | C139: 72 | D139: 33
A140: CFL | B140: CFL, 26W, Quad, Mag Ballast | C140: 33 | D140: 16
A141: CFL | B141: CFL, 26W, Quad, Electronic Ballast | C141: 28 | D141: 13
A142: CFL | B142: CFL, 26W, Quad, 2-Lamp, Mag Ballast | C142: 66 | D142: 31
A143: CFL | B143: CFL, 26W, Quad, 2-Lamp, Electronic Ballast | C143: 52 | D143: 24
A144: CFL | B144: CFL, 26W, Quad, 3-Lamp, Mag Ballast | C144: 99 | D144: 46
A145: CFL | B145: CFL, 26W, Quad, 6-Lamp, Electronic Ballast | C145: 150 | D145: 69
A146: CFL | B146: CFL, 32W, Quad, Electronic Ballast | C146: 34 | D146: 16
A147: CFL | B147: CFL, 32W, Quad, 2-Lamp, Electronic Ballast | C147: 62 | D147: 29
A148: CFL | B148: CFL, 40W, Quad, Electronic Ballast | C148: 43 | D148: 20
A149: CFL | B149: CFL, 40W, Quad, 2-Lamp, Electronic Eallast | C149: 72 | D149: 33
A150: CFL | B150: CFL, 50W, Twin, Electronic Ballast | C150: 61 | D150: 28
A151: CFL | B151: CFL, 55W, Twin, Electronic Ballast, BF<0.94 | C151: 59 | D151: 28
A152: CFL | B152: CFL, 57W, Triple, Electronic Ballast, BF=0.94 | C152: 60 | D152: 28
A153: Metal Halide | B153: Metal Halide, (1) 20W Lamp, Electronic Ballast | C153: 24 | D153: 18
A154: Metal Halide | B154: Metal Halide, (1) 22W Lamp, Electronic Ballast | C154: 26 | D154: 20
A155: Metal Halide | B155: Metal Halide, (1) 39W Lamp, Electronic Ballast | C155: 45 | D155: 34
A156: Metal Halide | B156: Metal Halide, (2) 39W Lamp, Electronic Ballast | C156: 89 | D156: 67
A157: Metal Halide | B157: Metal Halide, (1) 50W Lamp, Electronic Ballast | C157: 56 | D157: 42
A158: Metal Halide | B158: Metal Halide, (1) 70W Lamp, Electronic Ballast | C158: 80 | D158: 60
A159: Metal Halide | B159: Metal Halide, (1) 100W Lamp, Electronic Ballast | C159: 110 | D159: 83
A160: Metal Halide | B160: Metal Halide, (1) 150W Lamp, Electronic Ballast | C160: 168 | D160: 126
A161: Metal Halide | B161: Metal Halide, (1) 175W Lamp, Electronic Ballast | C161: 194 | D161: 146
A162: Metal Halide | B162: Metal Halide, (1) 200W Lamp, Electronic Ballast | C162: 215 | D162: 162
A163: Metal Halide | B163: Metal Halide, (1) 250W Lamp, Electronic Ballast | C163: 267 | D163: 201
A164: Metal Halide | B164: Metal Halide, (1) 320W Lamp, Electronic Ballast | C164: 343 | D164: 258
A165: Metal Halide | B165: Metal Halide, (1) 350W Lamp, Electronic Ballast | C165: 374 | D165: 281
A166: Metal Halide | B166: Metal Halide, (1) 400W Lamp, Electronic Ballast | C166: 428 | D166: 321
A167: Metal Halide | B167: Metal Halide, (1) 32W Lamp, Mag Ballast | C167: 43 | D167: 33
A168: Metal Halide | B168: Metal Halide, (1) 50W Lamp, Mag Ballast | C168: 61 | D168: 46
A169: Metal Halide | B169: Metal Halide, (1) 70W Lamp, Mag Ballast | C169: 88 | D169: 66
A170: Metal Halide | B170: Metal Halide, (1) 100W Lamp, Mag Ballast | C170: 128 | D170: 96
A171: Metal Halide | B171: Metal Halide, (1) 150W Lamp, Mag Ballast | C171: 190 | D171: 143
A172: Metal Halide | B172: Metal Halide, (1) 175W Lamp, Mag Ballast | C172: 210 | D172: 158
A173: Metal Halide | B173: Metal Halide, (1) 250W Lamp, Mag Ballast | C173: 294 | D173: 221
A174: Metal Halide | B174: Metal Halide, (1) 400W Lamp, Mag Ballast | C174: 458 | D174: 344
A175: Metal Halide | B175: Metal Halide, (2) 400W Lamp, Mag Ballast | C175: 916 | D175: 687
A176: Metal Halide | B176: Metal Halide, (1) 750W Lamp, Mag Ballast | C176: 850 | D176: 638
A177: Metal Halide | B177: Metal Halide, (1) 1000W Lamp, Mag Ballast | C177: 1080 | D177: 810
A178: Metal Halide | B178: Metal Halide, (1) 1500W Lamp, Mag Ballast | C178: 1605 | D178: 1204
A179: High Pressure Sodium | B179: High Pressure Sodium, (1) 35W Lamp | C179: 47 | D179: 40
A180: High Pressure Sodium | B180: High Pressure Sodium, (1) 50W Lamp | C180: 66 | D180: 55
A181: High Pressure Sodium | B181: High Pressure Sodium, (1) 70W Lamp | C181: 91 | D181: 76
A182: High Pressure Sodium | B182: High Pressure Sodium, (1) 100W Lamp | C182: 128 | D182: 107
A183: High Pressure Sodium | B183: High Pressure Sodium, (1) 150W Lamp | C183: 188 | D183: 157
A184: High Pressure Sodium | B184: High Pressure Sodium, (1) 200W Lamp | C184: 230 | D184: 192
A185: High Pressure Sodium | B185: High Pressure Sodium, (1) 250W Lamp | C185: 295 | D185: 246
A186: High Pressure Sodium | B186: High Pressure Sodium, (1) 310W Lamp | C186: 355 | D186: 296
A187: High Pressure Sodium | B187: High Pressure Sodium, (1) 360W Lamp | C187: 414 | D187: 345
A188: High Pressure Sodium | B188: High Pressure Sodium, (1) 400W Lamp | C188: 464 | D188: 387
A189: High Pressure Sodium | B189: High Pressure Sodium, (1) 750W Lamp | C189: 830 | D189: 692
A190: High Pressure Sodium | B190: High Pressure Sodium, (1) 1000W Lamp | C190: 1100 | D190: 917
A191: T12 Lamp | B191: Fluorescent, 18" T12 Lamp | C191: 19 | D191: 8
A192: T12 Lamp | B192: Fluorescent, 18" (2) T12 Lamps | C192: 38 | D192: 16
A193: T12 Lamp | B193: Fluorescent, 24" T12 Lamp | C193: 28 | D193: 12
A194: T12 Lamp | B194: Fluorescent, 24" (2) T12 Lamps | C194: 56 | D194: 24
A195: T12 Lamp | B195: Fluorescent, 24" (3) T12 Lamps | C195: 68 | D195: 29
A196: T12 Lamp | B196: Fluorescent, 24" (4) T12 Lamps | C196: 100 | D196: 42
A197: T12 Lamp | B197: Fluorescent, 36" (2) T12 Lamps | C197: 50 | D197: 21
A198: T12 Lamp | B198: Fluorescent, 48" T12 Lamp | C198: 44 | D198: 19
A199: T12 Lamp | B199: Fluorescent, 48" (2) T12 Lamps | C199: 74 | D199: 31
A200: T12 Lamp | B200: Fluorescent, 48" (3) T12 Lamps | C200: 114 | D200: 48
A201: T12 Lamp | B201: Fluorescent, 48" (4) T12 Lamps | C201: 148 | D201: 62
A202: T12 Lamp | B202: Fluorescent, 48" (6) T12 Lamps | C202: 216 | D202: 90
... 73 more rows
